BODY,BODY NAME,DATE,TRANSACTION NUMBER,THEIR REF,CATEGORY,AMOUNT,SUPPLIER NAME,SUPPLIER CODE,EXPENSE AREA,EXPENSE TYPE,EXPENSE CODE
http://statistics.data.gov.uk/id/local-authority/12UE,Huntingdonshire District Council,16/06/2016,189736,7083,5,"3,468.00",Air Monitors Ltd,CR480691,Air Quality,Equipment Maintenance,511
http://statistics.data.gov.uk/id/local-authority/12UE,Huntingdonshire District Council,16/06/2016,189736,7083,5,576,Air Monitors Ltd,CR480691,Air Quality,Software,206
http://statistics.data.gov.uk/id/local-authority/12UE,Huntingdonshire District Council,09/06/2016,189986,GFL 1783HDC,5,606,G Ferrara Ltd,CR478949,Bus Shelters,Building Cleaning,440
http://statistics.data.gov.uk/id/local-authority/12UE,Huntingdonshire District Council,30/06/2016,191112,2016/036,5,695.04,Primesight  Ltd,CR132710,Bus Shelters,Sitework,359
http://statistics.data.gov.uk/id/local-authority/12UE,Huntingdonshire District Council,02/06/2016,189448,56543,5,"1,174.99",Beebys Limited,CR415822,Bus Stations,Building Cleaning,440
http://statistics.data.gov.uk/id/local-authority/12UE,Huntingdonshire District Council,30/06/2016,190675,56740,5,"1,174.99",Beebys Limited,CR415822,Bus Stations,Building Cleaning,440
http://statistics.data.gov.uk/id/local-authority/12UE,Huntingdonshire District Council,02/06/2016,188970,SIN080316,5,"3,600.60",Quadrant Security Group,CR027775,C C T V,Equipment Maintenance,511
http://statistics.data.gov.uk/id/local-authority/12UE,Huntingdonshire District Council,02/06/2016,188970,SIN080316,5,"2,840.83",Quadrant Security Group,CR027775,C C T V,Equipment Maintenance,511
http://statistics.data.gov.uk/id/local-authority/12UE,Huntingdonshire District Council,30/06/2016,191328,SIN080658,5,"3,600.60",Quadrant Security Group,CR027775,C C T V,Equipment Maintenance,511
http://statistics.data.gov.uk/id/local-authority/12UE,Huntingdonshire District Council,30/06/2016,191328,SIN080658,5,"2,840.83",Quadrant Security Group,CR027775,C C T V,Equipment Maintenance,511
http://statistics.data.gov.uk/id/local-authority/12UE,Huntingdonshire District Council,16/06/2016,190721,1235729530,5,60,Orange Airtime,CR455799,C C T V,Telephone &Mobile Phonecharges,240
http://statistics.data.gov.uk/id/local-authority/12UE,Huntingdonshire District Council,09/06/2016,190198,11344,5,"24,487.33",Playfords Ltd,CR479055,Call Centre,Building Construction,300
http://statistics.data.gov.uk/id/local-authority/12UE,Huntingdonshire District Council,02/06/2016,189360,12158,5,325.2,Lightning Recruitment,CR028184,Call Centre,Hired Staff,100
http://statistics.data.gov.uk/id/local-authority/12UE,Huntingdonshire District Council,16/06/2016,189803,12232,5,325.2,Lightning Recruitment,CR028184,Call Centre,Hired Staff,100
http://statistics.data.gov.uk/id/local-authority/12UE,Huntingdonshire District Council,23/06/2016,188781,IN16PS16002303,5,89.39,Whistl Uk Ltd,CR479965,Call Centre,Postage,231
http://statistics.data.gov.uk/id/local-authority/12UE,Huntingdonshire District Council,01/06/2016,190253,363615,5,"1,860.00",Mr Mike Magee,CR406407,Central Services M Us,Legal Fees,729
http://statistics.data.gov.uk/id/local-authority/12UE,Huntingdonshire District Council,16/06/2016,190721,1235729530,5,12,Orange Airtime,CR455799,Central Services M Us,Telephone &Mobile Phonecharges,240
http://statistics.data.gov.uk/id/local-authority/12UE,Huntingdonshire District Council,27/06/2016,189831,212044,5,"9,000.00",South Cambridgeshire District Council,CR405127,Chief Executive & Comt,Consultants,711
http://statistics.data.gov.uk/id/local-authority/12UE,Huntingdonshire District Council,02/06/2016,189832,918716,6,"9,072.00",East Of England Lga,CR422620,Chief Executive & Comt,Consultants,711
http://statistics.data.gov.uk/id/local-authority/12UE,Huntingdonshire District Council,02/06/2016,189833,9186715,6,"6,750.00",East Of England Lga,CR422620,Chief Executive & Comt,Consultants,711
http://statistics.data.gov.uk/id/local-authority/12UE,Huntingdonshire District Council,16/06/2016,189834,9187369,6,"1,500.00",East Of England Lga,CR422620,Chief Executive & Comt,Consultants,711
http://statistics.data.gov.uk/id/local-authority/12UE,Huntingdonshire District Council,02/06/2016,189531,01/15/HDC014,5,"13,662.00",Hester Management Services Ltd,CR422903,Chief Executive & Comt,Consultants,711
http://statistics.data.gov.uk/id/local-authority/12UE,Huntingdonshire District Council,30/06/2016,598858,837939,5,"3,273.00",East Cambridgeshire District Council,CR413319,Chief Executive & Comt,Contribution (Paid Out),810
http://statistics.data.gov.uk/id/local-authority/12UE,Huntingdonshire District Council,30/06/2016,191721,16012588,5,"1,260.00",Cambridgeshire County Council,CR017440,Chief Executive & Comt,Pensions,P16
http://statistics.data.gov.uk/id/local-authority/12UE,Huntingdonshire District Council,09/06/2016,189533,8586,5,"8,370.00",Solace In Business,CR416525,Chief Executive & Comt,Recruitment Costs,120
http://statistics.data.gov.uk/id/local-authority/12UE,Huntingdonshire District Council,02/06/2016,189833,9186715,6,230.04,East Of England Lga,CR422620,Chief Executive & Comt,Travel Expenses,636
http://statistics.data.gov.uk/id/local-authority/12UE,Huntingdonshire District Council,30/06/2016,191716,C-0002332535,5,"6,472.50",Computershare Vouchers Ltd,CR412205,Child Care Vouchers - Payroll,Deductions Paid To Third Party,26
http://statistics.data.gov.uk/id/local-authority/12UE,Huntingdonshire District Council,30/06/2016,191548,5484,5,388.13,Hunts Forum Of Voluntary Organisations,CR030582,Commercial Properties,Building Mtce,303
http://statistics.data.gov.uk/id/local-authority/12UE,Huntingdonshire District Council,30/06/2016,191547,HDC 5408,5,325,Hunts Forum Of Voluntary Organisations,CR030582,Commercial Properties,Building Mtce,303
http://statistics.data.gov.uk/id/local-authority/12UE,Huntingdonshire District Council,24/06/2016,191546,BBS/16017/RBB,5,"2,991.36",Bbs Chartered Building Surveyors,CR455754,Commerical Investment Property,Consultants,711
http://statistics.data.gov.uk/id/local-authority/12UE,Huntingdonshire District Council,02/06/2016,190285,736,5,"2,038.88",Hact,CR455657,Concessionary Fares,Contribution (Paid Out),810
http://statistics.data.gov.uk/id/local-authority/12UE,Huntingdonshire District Council,23/06/2016,190518,814,5,493.13,Stm Environmentalconsultants Ltd,CR478181,Contaminated Land,Software,206
http://statistics.data.gov.uk/id/local-authority/12UE,Huntingdonshire District Council,23/06/2016,190653,3015,5,"3,725.33",Newlyn Plc,CR409114,Council Tax,Bailiffs,703
http://statistics.data.gov.uk/id/local-authority/12UE,Huntingdonshire District Council,02/06/2016,189338,B-11042016/,5,"3,602.38",Jacobs,CR422350,Council Tax,Bailiffs,703
http://statistics.data.gov.uk/id/local-authority/12UE,Huntingdonshire District Council,23/06/2016,188781,IN16PS16002303,5,"2,138.60",Whistl Uk Ltd,CR479965,Council Tax,Postage,231
http://statistics.data.gov.uk/id/local-authority/12UE,Huntingdonshire District Council,16/06/2016,190876,IN16PS16002435,5,664.14,Whistl Uk Ltd,CR479965,Council Tax,Postage,231
http://statistics.data.gov.uk/id/local-authority/12UE,Huntingdonshire District Council,09/06/2016,189695,IN16PS16002605,5,691.7,Whistl Uk Ltd,CR479965,Council Tax,Postage,231
http://statistics.data.gov.uk/id/local-authority/12UE,Huntingdonshire District Council,16/06/2016,190560,IN16PS16002917,5,"3,420.92",Whistl Uk Ltd,CR479965,Council Tax,Postage,231
http://statistics.data.gov.uk/id/local-authority/12UE,Huntingdonshire District Council,23/06/2016,190566,68915,5,257.83,Snackline Direct Ltd,CR478090,Countryside,Catering Materials,559
http://statistics.data.gov.uk/id/local-authority/12UE,Huntingdonshire District Council,02/06/2016,189884,861602,5,393.62,King Bros,CR411339,Countryside,Catering Materials,559
http://statistics.data.gov.uk/id/local-authority/12UE,Huntingdonshire District Council,02/06/2016,189883,862108,5,456.33,King Bros,CR411339,Countryside,Catering Materials,559
http://statistics.data.gov.uk/id/local-authority/12UE,Huntingdonshire District Council,16/06/2016,190683,863525,5,355.07,King Bros,CR411339,Countryside,Catering Materials,559
http://statistics.data.gov.uk/id/local-authority/12UE,Huntingdonshire District Council,23/06/2016,190684,864102,5,554.2,King Bros,CR411339,Countryside,Catering Materials,559
http://statistics.data.gov.uk/id/local-authority/12UE,Huntingdonshire District Council,30/06/2016,191677,704272310,5,265.19,Booker Cash And Carry,CR027611,Countryside,Catering Materials,559
http://statistics.data.gov.uk/id/local-authority/12UE,Huntingdonshire District Council,23/06/2016,190978,2102547357,5,377.55,Booker Cash And Carry,CR027611,Countryside,Catering Materials,559
http://statistics.data.gov.uk/id/local-authority/12UE,Huntingdonshire District Council,09/06/2016,598529,HCP,2,8.45,Mrs J P Arnold,CR025614,Countryside,Catering Materials,559
http://statistics.data.gov.uk/id/local-authority/12UE,Huntingdonshire District Council,30/06/2016,191676,INV549926,5,482.99,Ecocleen Services Limited,CR406985,Countryside,Cleaning Materials,443
http://statistics.data.gov.uk/id/local-authority/12UE,Huntingdonshire District Council,30/06/2016,191407,3200125687,5,39.2,Shell Uk Ltd,CR028192,Countryside,Diesel,615
http://statistics.data.gov.uk/id/local-authority/12UE,Huntingdonshire District Council,23/06/2016,191307,41226290,5,"1,931.65",Swalec,CR407130,Countryside,Electricity,420
http://statistics.data.gov.uk/id/local-authority/12UE,Huntingdonshire District Council,23/06/2016,191305,311226373/0004,5,518.46,Swalec,CR407130,Countryside,Electricity,420
http://statistics.data.gov.uk/id/local-authority/12UE,Huntingdonshire District Council,23/06/2016,190978,2102547357,5,36.65,Booker Cash And Carry,CR027611,Countryside,Equipment,500
http://statistics.data.gov.uk/id/local-authority/12UE,Huntingdonshire District Council,09/06/2016,598529,HCP,2,251.97,Mrs J P Arnold,CR025614,Countryside,Equipment,500
http://statistics.data.gov.uk/id/local-authority/12UE,Huntingdonshire District Council,16/06/2016,191160,439,5,344.36,Body Mechanics,CR422101,Countryside,Equipment Maintenance,511
http://statistics.data.gov.uk/id/local-authority/12UE,Huntingdonshire District Council,02/06/2016,189442,4000003628,5,300.96,1st Choice Recruitment,CR416849,Countryside,Hired Staff,100
http://statistics.data.gov.uk/id/local-authority/12UE,Huntingdonshire District Council,30/06/2016,191677,704272310,5,8.99,Booker Cash And Carry,CR027611,Countryside,Materials,550
http://statistics.data.gov.uk/id/local-authority/12UE,Huntingdonshire District Council,09/06/2016,598529,HCP,2,28.55,Mrs J P Arnold,CR025614,Countryside,Materials,550
http://statistics.data.gov.uk/id/local-authority/12UE,Huntingdonshire District Council,30/06/2016,191407,3200125687,5,144.64,Shell Uk Ltd,CR028192,Countryside,Petrol,614
http://statistics.data.gov.uk/id/local-authority/12UE,Huntingdonshire District Council,28/06/2016,191708,Y10039106N,5,"1,314.00",Navigators & General,CR455204,Countryside,Vehicle Insurance,610
http://statistics.data.gov.uk/id/local-authority/12UE,Huntingdonshire District Council,30/06/2016,191806,1.21E+12,5,254.76,Swalec,CR407130,Customer Service Centres,Electricity,420
http://statistics.data.gov.uk/id/local-authority/12UE,Huntingdonshire District Council,02/06/2016,189359,12157,5,373.98,Lightning Recruitment,CR028184,Customer Service Centres,Hired Staff,100
http://statistics.data.gov.uk/id/local-authority/12UE,Huntingdonshire District Council,02/06/2016,189361,12160,5,263.59,Lightning Recruitment,CR028184,Customer Service Centres,Hired Staff,100
http://statistics.data.gov.uk/id/local-authority/12UE,Huntingdonshire District Council,09/06/2016,189444,12197,5,601.62,Lightning Recruitment,CR028184,Customer Service Centres,Hired Staff,100
http://statistics.data.gov.uk/id/local-authority/12UE,Huntingdonshire District Council,09/06/2016,189441,12199,5,564.84,Lightning Recruitment,CR028184,Customer Service Centres,Hired Staff,100
http://statistics.data.gov.uk/id/local-authority/12UE,Huntingdonshire District Council,16/06/2016,189801,12231,5,601.62,Lightning Recruitment,CR028184,Customer Service Centres,Hired Staff,100
http://statistics.data.gov.uk/id/local-authority/12UE,Huntingdonshire District Council,16/06/2016,189807,12234,5,282.42,Lightning Recruitment,CR028184,Customer Service Centres,Hired Staff,100
http://statistics.data.gov.uk/id/local-authority/12UE,Huntingdonshire District Council,23/06/2016,190348,12270,5,414.22,Lightning Recruitment,CR028184,Customer Service Centres,Hired Staff,100
http://statistics.data.gov.uk/id/local-authority/12UE,Huntingdonshire District Council,30/06/2016,190660,12305,5,487.8,Lightning Recruitment,CR028184,Customer Service Centres,Hired Staff,100
http://statistics.data.gov.uk/id/local-authority/12UE,Huntingdonshire District Council,30/06/2016,190661,12308,5,527.18,Lightning Recruitment,CR028184,Customer Service Centres,Hired Staff,100
http://statistics.data.gov.uk/id/local-authority/12UE,Huntingdonshire District Council,30/06/2016,190878,3384,5,"2,685.83",White Commercial Surveyors Ltd,CR412242,Customer Service Centres,Rent,410
http://statistics.data.gov.uk/id/local-authority/12UE,Huntingdonshire District Council,02/06/2016,190320,16AW-HUNT01-01,5,"5,087.52",Wright Consulting,CR423525,Dc Application Processing,Consultants,711
http://statistics.data.gov.uk/id/local-authority/12UE,Huntingdonshire District Council,02/06/2016,190321,23AW-HUNT01-02,5,"1,194.00",Wright Consulting,CR423525,Dc Application Processing,Consultants,711
http://statistics.data.gov.uk/id/local-authority/12UE,Huntingdonshire District Council,30/06/2016,190893,9131896,5,"6,956.93",Canon Uk Ltd,CR409013,Document Centre,Equipment Maintenance,511
http://statistics.data.gov.uk/id/local-authority/12UE,Huntingdonshire District Council,30/06/2016,190892,9131897,5,"3,074.15",Canon Uk Ltd,CR409013,Document Centre,Equipment Maintenance,511
http://statistics.data.gov.uk/id/local-authority/12UE,Huntingdonshire District Council,02/06/2016,189354,1124391213,5,606.77,Konica Minolta,CR478866,Document Centre,Equipment Maintenance,511
http://statistics.data.gov.uk/id/local-authority/12UE,Huntingdonshire District Council,16/06/2016,190537,917652,5,-965.25,Antalis Ltd,CR479468,Document Centre,Paper,562
http://statistics.data.gov.uk/id/local-authority/12UE,Huntingdonshire District Council,23/06/2016,191398,5694543,5,763.2,Antalis Ltd,CR479468,Document Centre,Paper,562
http://statistics.data.gov.uk/id/local-authority/12UE,Huntingdonshire District Council,16/06/2016,190516,5804128,5,"1,016.06",Antalis Ltd,CR479468,Document Centre,Paper,562
http://statistics.data.gov.uk/id/local-authority/12UE,Huntingdonshire District Council,09/06/2016,189846,5832920,5,115.92,Antalis Ltd,CR479468,Document Centre,Paper,562
http://statistics.data.gov.uk/id/local-authority/12UE,Huntingdonshire District Council,09/06/2016,189846,5832920,5,556.8,Antalis Ltd,CR479468,Document Centre,Paper,562
http://statistics.data.gov.uk/id/local-authority/12UE,Huntingdonshire District Council,09/06/2016,189846,5832920,5,101.08,Antalis Ltd,CR479468,Document Centre,Paper,562
http://statistics.data.gov.uk/id/local-authority/12UE,Huntingdonshire District Council,09/06/2016,189846,5832920,5,49.38,Antalis Ltd,CR479468,Document Centre,Paper,562
http://statistics.data.gov.uk/id/local-authority/12UE,Huntingdonshire District Council,09/06/2016,189848,5845504,5,"1,267.87",Antalis Ltd,CR479468,Document Centre,Paper,562
http://statistics.data.gov.uk/id/local-authority/12UE,Huntingdonshire District Council,16/06/2016,189836,5849438,5,278.4,Antalis Ltd,CR479468,Document Centre,Paper,562
http://statistics.data.gov.uk/id/local-authority/12UE,Huntingdonshire District Council,16/06/2016,190514,5853544,5,278.4,Antalis Ltd,CR479468,Document Centre,Paper,562
http://statistics.data.gov.uk/id/local-authority/12UE,Huntingdonshire District Council,23/06/2016,190515,5873783,5,173.88,Antalis Ltd,CR479468,Document Centre,Paper,562
http://statistics.data.gov.uk/id/local-authority/12UE,Huntingdonshire District Council,23/06/2016,190515,5873783,5,113.21,Antalis Ltd,CR479468,Document Centre,Paper,562
http://statistics.data.gov.uk/id/local-authority/12UE,Huntingdonshire District Council,23/06/2016,190515,5873783,5,104.87,Antalis Ltd,CR479468,Document Centre,Paper,562
http://statistics.data.gov.uk/id/local-authority/12UE,Huntingdonshire District Council,23/06/2016,190515,5873783,5,93.31,Antalis Ltd,CR479468,Document Centre,Paper,562
http://statistics.data.gov.uk/id/local-authority/12UE,Huntingdonshire District Council,09/06/2016,189904,10313860,5,"1,926.00",Moore Paragon Uk Limited Pss,CR030863,Document Centre,Paper,562
http://statistics.data.gov.uk/id/local-authority/12UE,Huntingdonshire District Council,02/06/2016,189366,9052111514,5,304.8,Royal Mail,CR027083,Document Centre,Postage,231
http://statistics.data.gov.uk/id/local-authority/12UE,Huntingdonshire District Council,09/06/2016,190156,9052160964,5,304.29,Royal Mail,CR027083,Document Centre,Postage,231
http://statistics.data.gov.uk/id/local-authority/12UE,Huntingdonshire District Council,02/06/2016,190153,9052206464,5,-827.98,Royal Mail,CR027083,Document Centre,Postage,231
http://statistics.data.gov.uk/id/local-authority/12UE,Huntingdonshire District Council,02/06/2016,190149,9052206522,5,-421.36,Royal Mail,CR027083,Document Centre,Postage,231
http://statistics.data.gov.uk/id/local-authority/12UE,Huntingdonshire District Council,30/06/2016,190523,9052243981,5,680.19,Royal Mail,CR027083,Document Centre,Postage,231
http://statistics.data.gov.uk/id/local-authority/12UE,Huntingdonshire District Council,30/06/2016,190888,9052291664,5,367.53,Royal Mail,CR027083,Document Centre,Postage,231
http://statistics.data.gov.uk/id/local-authority/12UE,Huntingdonshire District Council,23/06/2016,188781,IN16PS16002303,5,"1,285.24",Whistl Uk Ltd,CR479965,Document Centre,Postage,231
http://statistics.data.gov.uk/id/local-authority/12UE,Huntingdonshire District Council,16/06/2016,190876,IN16PS16002435,5,927.28,Whistl Uk Ltd,CR479965,Document Centre,Postage,231
http://statistics.data.gov.uk/id/local-authority/12UE,Huntingdonshire District Council,09/06/2016,189695,IN16PS16002605,5,"1,114.84",Whistl Uk Ltd,CR479965,Document Centre,Postage,231
http://statistics.data.gov.uk/id/local-authority/12UE,Huntingdonshire District Council,16/06/2016,189699,IN16PS16002890,5,"1,019.17",Whistl Uk Ltd,CR479965,Document Centre,Postage,231
http://statistics.data.gov.uk/id/local-authority/12UE,Huntingdonshire District Council,16/06/2016,190560,IN16PS16002917,5,"1,043.45",Whistl Uk Ltd,CR479965,Document Centre,Postage,231
http://statistics.data.gov.uk/id/local-authority/12UE,Huntingdonshire District Council,30/06/2016,191274,82554466,5,371.7,Archant Herts & Cambs,CR415764,Domestic Refuse,Advertising/Promoting Services,255
http://statistics.data.gov.uk/id/local-authority/12UE,Huntingdonshire District Council,30/06/2016,190948,2029,5,"2,630.59",Change Agents Uk Trading Ltd,CR477664,Domestic Refuse,Hired Staff,100
http://statistics.data.gov.uk/id/local-authority/12UE,Huntingdonshire District Council,02/06/2016,189938,IN0515238,5,"6,563.45",Staffline Group,CR416827,Domestic Refuse,Hired Staff,100
http://statistics.data.gov.uk/id/local-authority/12UE,Huntingdonshire District Council,02/06/2016,189931,IN0515239,5,"2,022.08",Staffline Group,CR416827,Domestic Refuse,Hired Staff,100
http://statistics.data.gov.uk/id/local-authority/12UE,Huntingdonshire District Council,09/06/2016,189940,IN0516767,5,"6,522.35",Staffline Group,CR416827,Domestic Refuse,Hired Staff,100
http://statistics.data.gov.uk/id/local-authority/12UE,Huntingdonshire District Council,09/06/2016,189933,IN0516768,5,"1,539.14",Staffline Group,CR416827,Domestic Refuse,Hired Staff,100
http://statistics.data.gov.uk/id/local-authority/12UE,Huntingdonshire District Council,23/06/2016,191039,IN0518552,5,"6,501.53",Staffline Group,CR416827,Domestic Refuse,Hired Staff,100
http://statistics.data.gov.uk/id/local-authority/12UE,Huntingdonshire District Council,23/06/2016,191035,IN0518553,5,"1,927.43",Staffline Group,CR416827,Domestic Refuse,Hired Staff,100
http://statistics.data.gov.uk/id/local-authority/12UE,Huntingdonshire District Council,30/06/2016,191040,IN0519907,5,"6,270.02",Staffline Group,CR416827,Domestic Refuse,Hired Staff,100
http://statistics.data.gov.uk/id/local-authority/12UE,Huntingdonshire District Council,30/06/2016,191036,IN0519908,5,670.32,Staffline Group,CR416827,Domestic Refuse,Hired Staff,100
http://statistics.data.gov.uk/id/local-authority/12UE,Huntingdonshire District Council,30/06/2016,191425,IN0521557,5,"6,102.74",Staffline Group,CR416827,Domestic Refuse,Hired Staff,100
http://statistics.data.gov.uk/id/local-authority/12UE,Huntingdonshire District Council,30/06/2016,191419,IN0521558,5,"2,413.31",Staffline Group,CR416827,Domestic Refuse,Hired Staff,100
http://statistics.data.gov.uk/id/local-authority/12UE,Huntingdonshire District Council,02/06/2016,189523,345070,5,676.62,Smi Group,CR423139,Domestic Refuse,Protective Clothing & Uniforms,163
http://statistics.data.gov.uk/id/local-authority/12UE,Huntingdonshire District Council,02/06/2016,189514,345158,5,257.4,Smi Group,CR423139,Domestic Refuse,Protective Clothing & Uniforms,163
http://statistics.data.gov.uk/id/local-authority/12UE,Huntingdonshire District Council,02/06/2016,189524,345746,5,640.64,Smi Group,CR423139,Domestic Refuse,Protective Clothing & Uniforms,163
http://statistics.data.gov.uk/id/local-authority/12UE,Huntingdonshire District Council,09/06/2016,189525,346297,5,612,Smi Group,CR423139,Domestic Refuse,Protective Clothing & Uniforms,163
http://statistics.data.gov.uk/id/local-authority/12UE,Huntingdonshire District Council,09/06/2016,189909,346421,5,512.46,Smi Group,CR423139,Domestic Refuse,Protective Clothing & Uniforms,163
http://statistics.data.gov.uk/id/local-authority/12UE,Huntingdonshire District Council,30/06/2016,190946,SINV-096435,5,"2,397.66",Gelpack Excelsior Limited,CR002966,Domestic Refuse,Refuse Sacks,552
http://statistics.data.gov.uk/id/local-authority/12UE,Huntingdonshire District Council,30/06/2016,190945,SINV-096490,5,799.22,Gelpack Excelsior Limited,CR002966,Domestic Refuse,Refuse Sacks,552
http://statistics.data.gov.uk/id/local-authority/12UE,Huntingdonshire District Council,09/06/2016,189959,99302,5,276,Huntingdon Plant Hire,CR000425,Domestic Refuse,Vehicle Cleaning,620
http://statistics.data.gov.uk/id/local-authority/12UE,Huntingdonshire District Council,23/06/2016,190575,1605/10110,5,326.4,Gullivers Truck Hire Ltd,CR477663,Domestic Refuse,Vehicle Hire,607
http://statistics.data.gov.uk/id/local-authority/12UE,Huntingdonshire District Council,30/06/2016,190943,1605/14910,5,"2,570.40",Gullivers Truck Hire Ltd,CR477663,Domestic Refuse,Vehicle Hire,607
http://statistics.data.gov.uk/id/local-authority/12UE,Huntingdonshire District Council,09/06/2016,190586,96326724,5,"1,359.86",Terberg Matec Uk Ltd,CR402183,Domestic Refuse,Vehicle Maintenance External,619
http://statistics.data.gov.uk/id/local-authority/12UE,Huntingdonshire District Council,09/06/2016,189952,186376,5,294,Barton Petroleum,CR409205,Domestic Refuse,Vehicle Oil & Lubricants,626
http://statistics.data.gov.uk/id/local-authority/12UE,Huntingdonshire District Council,09/06/2016,190551,136430,5,348,Silver Shield Windscreens,CR024745,Domestic Refuse,Vehicle Parts & Fittings,625
http://statistics.data.gov.uk/id/local-authority/12UE,Huntingdonshire District Council,09/06/2016,189954,282044,5,328.5,Dennis Eagle Ltd,CR000200,Domestic Refuse,Vehicle Parts & Fittings,625
http://statistics.data.gov.uk/id/local-authority/12UE,Huntingdonshire District Council,23/06/2016,190581,283123,5,411.23,Dennis Eagle Ltd,CR000200,Domestic Refuse,Vehicle Parts & Fittings,625
http://statistics.data.gov.uk/id/local-authority/12UE,Huntingdonshire District Council,09/06/2016,190587,96326720,5,"3,419.68",Terberg Matec Uk Ltd,CR402183,Domestic Refuse,Vehicle Parts & Fittings,625
http://statistics.data.gov.uk/id/local-authority/12UE,Huntingdonshire District Council,16/06/2016,190582,96326865,5,"1,211.91",Terberg Matec Uk Ltd,CR402183,Domestic Refuse,Vehicle Parts & Fittings,625
http://statistics.data.gov.uk/id/local-authority/12UE,Huntingdonshire District Council,09/06/2016,189419,265575I,5,377.45,A C Commercials,CR000141,Domestic Refuse,Vehicle Parts & Fittings,625
http://statistics.data.gov.uk/id/local-authority/12UE,Huntingdonshire District Council,16/06/2016,189966,265726I,5,260.16,A C Commercials,CR000141,Domestic Refuse,Vehicle Parts & Fittings,625
http://statistics.data.gov.uk/id/local-authority/12UE,Huntingdonshire District Council,02/06/2016,189434,DE10949640,5,484.4,Dennis Eagle Ltd,CR000200,Domestic Refuse,Vehicle Parts & Fittings,625
http://statistics.data.gov.uk/id/local-authority/12UE,Huntingdonshire District Council,09/06/2016,189957,DE10951504,5,656.08,Dennis Eagle Ltd,CR000200,Domestic Refuse,Vehicle Parts & Fittings,625
http://statistics.data.gov.uk/id/local-authority/12UE,Huntingdonshire District Council,09/06/2016,189956,DE10951848,5,294.4,Dennis Eagle Ltd,CR000200,Domestic Refuse,Vehicle Parts & Fittings,625
http://statistics.data.gov.uk/id/local-authority/12UE,Huntingdonshire District Council,09/06/2016,189955,DE10951849,5,468.14,Dennis Eagle Ltd,CR000200,Domestic Refuse,Vehicle Parts & Fittings,625
http://statistics.data.gov.uk/id/local-authority/12UE,Huntingdonshire District Council,16/06/2016,190215,DE10952517,5,761.22,Dennis Eagle Ltd,CR000200,Domestic Refuse,Vehicle Parts & Fittings,625
http://statistics.data.gov.uk/id/local-authority/12UE,Huntingdonshire District Council,16/06/2016,190213,DE10953265,5,728.38,Dennis Eagle Ltd,CR000200,Domestic Refuse,Vehicle Parts & Fittings,625
http://statistics.data.gov.uk/id/local-authority/12UE,Huntingdonshire District Council,23/06/2016,190967,DE10955171,5,"1,824.97",Dennis Eagle Ltd,CR000200,Domestic Refuse,Vehicle Parts & Fittings,625
http://statistics.data.gov.uk/id/local-authority/12UE,Huntingdonshire District Council,02/06/2016,189829,29865,5,"1,349.38",Hi-Spec Facilities Services Plc,CR423413,E F H And Depots,Building Cleaning,440
http://statistics.data.gov.uk/id/local-authority/12UE,Huntingdonshire District Council,02/06/2016,189748,132,5,"5,640.00",Lcs Energy Ltd,CR423483,E F H And Depots,Building Mtce,303
http://statistics.data.gov.uk/id/local-authority/12UE,Huntingdonshire District Council,09/06/2016,189826,22184,5,640.75,B. S. Graves Electrical Ltd,CR000363,E F H And Depots,Building Mtce,303
http://statistics.data.gov.uk/id/local-authority/12UE,Huntingdonshire District Council,16/06/2016,190989,65924,5,"2,855.84",Haven Power Ltd,CR455940,E F H And Depots,Electricity,420
http://statistics.data.gov.uk/id/local-authority/12UE,Huntingdonshire District Council,09/06/2016,190201,63682663,5,488.45,Phs Datashred,CR480152,E F H And Depots,Shredding,773
http://statistics.data.gov.uk/id/local-authority/12UE,Huntingdonshire District Council,09/06/2016,190204,63725100,5,358.62,Phs Datashred,CR480152,E F H And Depots,Shredding,773
http://statistics.data.gov.uk/id/local-authority/12UE,Huntingdonshire District Council,09/06/2016,597608,31BJ,6,250,Fenstanton Church Centre,CR021563,Elections,Hire Of Rooms,411
http://statistics.data.gov.uk/id/local-authority/12UE,Huntingdonshire District Council,23/06/2016,599059,EU POLL STATION,6,252,Alconbury Memorial Hall,CR411628,Elections,Hire Of Rooms,411
http://statistics.data.gov.uk/id/local-authority/12UE,Huntingdonshire District Council,23/06/2016,599087,EU POLL STATION,6,250,Fenstanton Church Centre,CR021563,Elections,Hire Of Rooms,411
http://statistics.data.gov.uk/id/local-authority/12UE,Huntingdonshire District Council,09/06/2016,597573,POLLINGSTATION,6,252,Alconbury Memorial Hall,CR411628,Elections,Hire Of Rooms,411
http://statistics.data.gov.uk/id/local-authority/12UE,Huntingdonshire District Council,02/06/2016,189366,9052111514,5,455.83,Royal Mail,CR027083,Elections,Postage,231
http://statistics.data.gov.uk/id/local-authority/12UE,Huntingdonshire District Council,02/06/2016,189365,9052122406,5,"5,952.54",Royal Mail,CR027083,Elections,Postage,231
http://statistics.data.gov.uk/id/local-authority/12UE,Huntingdonshire District Council,09/06/2016,190156,9052160964,5,48.84,Royal Mail,CR027083,Elections,Postage,231
http://statistics.data.gov.uk/id/local-authority/12UE,Huntingdonshire District Council,09/06/2016,190151,9052170496,5,"2,300.23",Royal Mail,CR027083,Elections,Postage,231
http://statistics.data.gov.uk/id/local-authority/12UE,Huntingdonshire District Council,16/06/2016,190148,9052195937,5,"38,698.74",Royal Mail,CR027083,Elections,Postage,231
http://statistics.data.gov.uk/id/local-authority/12UE,Huntingdonshire District Council,30/06/2016,190523,9052243981,5,292.55,Royal Mail,CR027083,Elections,Postage,231
http://statistics.data.gov.uk/id/local-authority/12UE,Huntingdonshire District Council,30/06/2016,190888,9052291664,5,"8,053.49",Royal Mail,CR027083,Elections,Postage,231
http://statistics.data.gov.uk/id/local-authority/12UE,Huntingdonshire District Council,16/06/2016,190884,2920,5,"3,749.20",Sci Print Limited,CR416581,Elections,Printing (External),220
http://statistics.data.gov.uk/id/local-authority/12UE,Huntingdonshire District Council,09/06/2016,189194,13162,5,415.2,Victoirepress,CR404724,Elections,Printing (External),220
http://statistics.data.gov.uk/id/local-authority/12UE,Huntingdonshire District Council,23/06/2016,190186,13478,5,"9,176.40",Victoirepress,CR404724,Elections,Printing (External),220
http://statistics.data.gov.uk/id/local-authority/12UE,Huntingdonshire District Council,02/06/2016,189366,9052111514,5,"1,651.63",Royal Mail,CR027083,Electoral Registration,Postage,231
http://statistics.data.gov.uk/id/local-authority/12UE,Huntingdonshire District Council,30/06/2016,190523,9052243981,5,147.2,Royal Mail,CR027083,Electoral Registration,Postage,231
http://statistics.data.gov.uk/id/local-authority/12UE,Huntingdonshire District Council,30/06/2016,190888,9052291664,5,799.94,Royal Mail,CR027083,Electoral Registration,Postage,231
http://statistics.data.gov.uk/id/local-authority/12UE,Huntingdonshire District Council,23/06/2016,188781,IN16PS16002303,5,417.69,Whistl Uk Ltd,CR479965,Electoral Registration,Postage,231
http://statistics.data.gov.uk/id/local-authority/12UE,Huntingdonshire District Council,16/06/2016,190876,IN16PS16002435,5,443.17,Whistl Uk Ltd,CR479965,Electoral Registration,Postage,231
http://statistics.data.gov.uk/id/local-authority/12UE,Huntingdonshire District Council,09/06/2016,189695,IN16PS16002605,5,56.39,Whistl Uk Ltd,CR479965,Electoral Registration,Postage,231
http://statistics.data.gov.uk/id/local-authority/12UE,Huntingdonshire District Council,16/06/2016,189699,IN16PS16002890,5,30.07,Whistl Uk Ltd,CR479965,Electoral Registration,Postage,231
http://statistics.data.gov.uk/id/local-authority/12UE,Huntingdonshire District Council,16/06/2016,190560,IN16PS16002917,5,551.34,Whistl Uk Ltd,CR479965,Electoral Registration,Postage,231
http://statistics.data.gov.uk/id/local-authority/12UE,Huntingdonshire District Council,16/06/2016,190538,4000003661,5,269.58,1st Choice Recruitment,CR416849,Environmental Management,Hired Staff,100
http://statistics.data.gov.uk/id/local-authority/12UE,Huntingdonshire District Council,30/06/2016,190523,9052243981,5,732.7,Royal Mail,CR027083,Environmental Management,Postage,231
http://statistics.data.gov.uk/id/local-authority/12UE,Huntingdonshire District Council,16/06/2016,190721,1235729530,5,98.4,Orange Airtime,CR455799,Environmental Management,Telephone &Mobile Phonecharges,240
http://statistics.data.gov.uk/id/local-authority/12UE,Huntingdonshire District Council,16/06/2016,190983,12159,5,250.15,Lightning Recruitment,CR028184,Financial Services Mus,Hired Staff,100
http://statistics.data.gov.uk/id/local-authority/12UE,Huntingdonshire District Council,16/06/2016,190982,12233,5,285.89,Lightning Recruitment,CR028184,Financial Services Mus,Hired Staff,100
http://statistics.data.gov.uk/id/local-authority/12UE,Huntingdonshire District Council,23/06/2016,190980,12269,5,536.04,Lightning Recruitment,CR028184,Financial Services Mus,Hired Staff,100
http://statistics.data.gov.uk/id/local-authority/12UE,Huntingdonshire District Council,30/06/2016,190981,12307,5,410.96,Lightning Recruitment,CR028184,Financial Services Mus,Hired Staff,100
http://statistics.data.gov.uk/id/local-authority/12UE,Huntingdonshire District Council,02/06/2016,189145,33291,5,953.32,Meyer Scott Recruitment Limited,CR422369,Financial Services Mus,Hired Staff,100
http://statistics.data.gov.uk/id/local-authority/12UE,Huntingdonshire District Council,02/06/2016,189417,33320,5,989.99,Meyer Scott Recruitment Limited,CR422369,Financial Services Mus,Hired Staff,100
http://statistics.data.gov.uk/id/local-authority/12UE,Huntingdonshire District Council,09/06/2016,189767,33348,5,"1,205.90",Meyer Scott Recruitment Limited,CR422369,Financial Services Mus,Hired Staff,100
http://statistics.data.gov.uk/id/local-authority/12UE,Huntingdonshire District Council,02/06/2016,188710,BC00176,5,"3,780.00",Barry Cornelius Associates,CR422523,Financial Services Mus,Hired Staff,100
http://statistics.data.gov.uk/id/local-authority/12UE,Huntingdonshire District Council,30/06/2016,191407,3200125687,5,38.47,Shell Uk Ltd,CR028192,Fleet Management,Diesel,615
http://statistics.data.gov.uk/id/local-authority/12UE,Huntingdonshire District Council,16/06/2016,189762,36101,5,"1,125.60",Merridale Mis Fuel Monitoring Ltd,CR478577,Fleet Management,Equipment Maintenance,511
http://statistics.data.gov.uk/id/local-authority/12UE,Huntingdonshire District Council,30/06/2016,191042,88408,5,368.64,Starmaker Welding Services,CR029912,Fleet Management,Equipment Maintenance,511
http://statistics.data.gov.uk/id/local-authority/12UE,Huntingdonshire District Council,09/06/2016,190606,37139,5,316.33,Trinity Engineering & Component Supplies Ltd,CR455479,Fleet Management,Materials,550
http://statistics.data.gov.uk/id/local-authority/12UE,Huntingdonshire District Council,09/06/2016,190605,37140,5,445.04,Trinity Engineering & Component Supplies Ltd,CR455479,Fleet Management,Materials,550
http://statistics.data.gov.uk/id/local-authority/12UE,Huntingdonshire District Council,23/06/2016,190958,SN2403691,5,381.6,Berendsen,CR478298,Fleet Management,Materials,550
http://statistics.data.gov.uk/id/local-authority/12UE,Huntingdonshire District Council,09/06/2016,190574,300112743,5,"1,122.00",Freight Transport Association,CR003104,Fleet Management,Professional Subscriptions,755
http://statistics.data.gov.uk/id/local-authority/12UE,Huntingdonshire District Council,09/06/2016,189761,0940/0183634,5,258.34,Jewsons Ltd,CR401823,Fleet Management,Software,206
http://statistics.data.gov.uk/id/local-authority/12UE,Huntingdonshire District Council,09/06/2016,189397,RSIN0177786,5,296.1,Rigby Taylor Ltd,CR001345,Grounds Maintenance,Chemicals,551
http://statistics.data.gov.uk/id/local-authority/12UE,Huntingdonshire District Council,30/06/2016,191407,3200125687,5,252.07,Shell Uk Ltd,CR028192,Grounds Maintenance,Diesel,615
http://statistics.data.gov.uk/id/local-authority/12UE,Huntingdonshire District Council,09/06/2016,189414,44628,5,316.8,Groundsman,CR422159,Grounds Maintenance,Equipment,500
http://statistics.data.gov.uk/id/local-authority/12UE,Huntingdonshire District Council,23/06/2016,190545,52171,5,385.44,Landmark Trading Ltd,CR411433,Grounds Maintenance,Equipment,500
http://statistics.data.gov.uk/id/local-authority/12UE,Huntingdonshire District Council,30/06/2016,191408,3200125661,5,370.48,Shell Uk Ltd,CR028192,Grounds Maintenance,Petrol,614
http://statistics.data.gov.uk/id/local-authority/12UE,Huntingdonshire District Council,30/06/2016,191407,3200125687,5,78.48,Shell Uk Ltd,CR028192,Grounds Maintenance,Petrol,614
http://statistics.data.gov.uk/id/local-authority/12UE,Huntingdonshire District Council,16/06/2016,189961,16187,5,270,Ian'S Tyre & Exhaust Centre,CR405836,Grounds Maintenance,Tyres,630
http://statistics.data.gov.uk/id/local-authority/12UE,Huntingdonshire District Council,23/06/2016,190230,16256,5,360,Ian'S Tyre & Exhaust Centre,CR405836,Grounds Maintenance,Tyres,630
http://statistics.data.gov.uk/id/local-authority/12UE,Huntingdonshire District Council,23/06/2016,190229,16258,5,252,Ian'S Tyre & Exhaust Centre,CR405836,Grounds Maintenance,Tyres,630
http://statistics.data.gov.uk/id/local-authority/12UE,Huntingdonshire District Council,23/06/2016,190579,83953,5,263.4,Frank Ratcliffe & Son,CR007546,Grounds Maintenance,Vehicle Parts & Fittings,625
http://statistics.data.gov.uk/id/local-authority/12UE,Huntingdonshire District Council,09/06/2016,190211,175314,5,493.44,Arthur Ibbett Ltd,CR000430,Grounds Maintenance,Vehicle Parts & Fittings,625
http://statistics.data.gov.uk/id/local-authority/12UE,Huntingdonshire District Council,02/06/2016,190221,781652,5,337,Ernest Doe & Sons,CR000261,Grounds Maintenance,Vehicle Parts & Fittings,625
http://statistics.data.gov.uk/id/local-authority/12UE,Huntingdonshire District Council,09/06/2016,189958,782017,5,522.95,Ernest Doe & Sons,CR000261,Grounds Maintenance,Vehicle Parts & Fittings,625
http://statistics.data.gov.uk/id/local-authority/12UE,Huntingdonshire District Council,16/06/2016,190218,782329,5,318.6,Ernest Doe & Sons,CR000261,Grounds Maintenance,Vehicle Parts & Fittings,625
http://statistics.data.gov.uk/id/local-authority/12UE,Huntingdonshire District Council,16/06/2016,189965,265012I,5,"1,498.94",A C Commercials,CR000141,Grounds Maintenance,Vehicle Parts & Fittings,625
http://statistics.data.gov.uk/id/local-authority/12UE,Huntingdonshire District Council,23/06/2016,190207,265866I,5,480.17,A C Commercials,CR000141,Grounds Maintenance,Vehicle Parts & Fittings,625
http://statistics.data.gov.uk/id/local-authority/12UE,Huntingdonshire District Council,30/06/2016,191790,189571,5,407.96,Cambridge City Council,CR017896,Homelessness Management,Bed & Breakfast Payment,818
http://statistics.data.gov.uk/id/local-authority/12UE,Huntingdonshire District Council,09/06/2016,190613,19/2016,5,935,The Station Hotel,CR453752,Homelessness Management,Bed & Breakfast Payment,818
http://statistics.data.gov.uk/id/local-authority/12UE,Huntingdonshire District Council,09/06/2016,190614,20/2016,5,"1,190.00",The Station Hotel,CR453752,Homelessness Management,Bed & Breakfast Payment,818
http://statistics.data.gov.uk/id/local-authority/12UE,Huntingdonshire District Council,02/06/2016,190335,EC023,5,"3,120.00",Ukos Projects Ltd,CR423164,Homelessness Management,Bed & Breakfast Payment,818
http://statistics.data.gov.uk/id/local-authority/12UE,Huntingdonshire District Council,09/06/2016,190611,EC024,5,"3,240.00",Ukos Projects Ltd,CR423164,Homelessness Management,Bed & Breakfast Payment,818
http://statistics.data.gov.uk/id/local-authority/12UE,Huntingdonshire District Council,16/06/2016,190941,EC025,5,"3,000.00",Ukos Projects Ltd,CR423164,Homelessness Management,Bed & Breakfast Payment,818
http://statistics.data.gov.uk/id/local-authority/12UE,Huntingdonshire District Council,09/06/2016,190695,REDACTED PERSONAL DATA,5,407.96,Cambridge City Council,CR017896,Homelessness Management,Bed & Breakfast Payment,818
http://statistics.data.gov.uk/id/local-authority/12UE,Huntingdonshire District Council,02/06/2016,190333,REDACTED PERSONAL DATA,5,288,Alexanders Self Storage,CR478267,Homelessness Management,Removal/Storage,750
http://statistics.data.gov.uk/id/local-authority/12UE,Huntingdonshire District Council,09/06/2016,190697,REDACTED PERSONAL DATA,5,288,Alexanders Self Storage,CR478267,Homelessness Management,Removal/Storage,750
http://statistics.data.gov.uk/id/local-authority/12UE,Huntingdonshire District Council,09/06/2016,190699,REDACTED PERSONAL DATA,5,288,Alexanders Self Storage,CR478267,Homelessness Management,Removal/Storage,750
http://statistics.data.gov.uk/id/local-authority/12UE,Huntingdonshire District Council,09/06/2016,598530,8873,5,500.4,Steves Taxis & Private Hire,CR155956,Homelessness Management,Travel Expenses,636
http://statistics.data.gov.uk/id/local-authority/12UE,Huntingdonshire District Council,16/06/2016,189755,3183174,5,"1,116.72",Venn Group Recruitment,CR415403,Housing  Benefits Admin,Hired Staff,100
http://statistics.data.gov.uk/id/local-authority/12UE,Huntingdonshire District Council,16/06/2016,190876,IN16PS16002435,5,486.2,Whistl Uk Ltd,CR479965,Housing  Benefits Admin,Postage,231
http://statistics.data.gov.uk/id/local-authority/12UE,Huntingdonshire District Council,09/06/2016,189695,IN16PS16002605,5,"1,051.34",Whistl Uk Ltd,CR479965,Housing  Benefits Admin,Postage,231
http://statistics.data.gov.uk/id/local-authority/12UE,Huntingdonshire District Council,16/06/2016,190560,IN16PS16002917,5,427.72,Whistl Uk Ltd,CR479965,Housing  Benefits Admin,Postage,231
http://statistics.data.gov.uk/id/local-authority/12UE,Huntingdonshire District Council,16/06/2016,598513,189091,5,"1,000.00",Cambridge City Council,CR017896,Housing  Benefits Admin,Software,206
http://statistics.data.gov.uk/id/local-authority/12UE,Huntingdonshire District Council,14/06/2016,186882,IEG4001297,5,"14,400.00",Ieg4 Limited,CR453919,Housing  Benefits Admin,Software,206
http://statistics.data.gov.uk/id/local-authority/12UE,Huntingdonshire District Council,23/06/2016,190521,DIHH/00002948,5,"3,837.60",Luminus Homes,CR401276,Housing Services Other,Building Mtce,303
http://statistics.data.gov.uk/id/local-authority/12UE,Huntingdonshire District Council,23/06/2016,190522,DIHH00002947,5,415.44,Luminus Homes,CR401276,Housing Services Other,Building Mtce,303
http://statistics.data.gov.uk/id/local-authority/12UE,Huntingdonshire District Council,16/06/2016,190520,22349,5,576,B. S. Graves Electrical Ltd,CR000363,Housing Services Other,Electricity,420
http://statistics.data.gov.uk/id/local-authority/12UE,Huntingdonshire District Council,23/06/2016,191300,481291201,5,"1,579.83",Swalec,CR407130,Housing Services Other,Electricity,420
http://statistics.data.gov.uk/id/local-authority/12UE,Huntingdonshire District Council,23/06/2016,191340,112363965,5,"5,742.64",Anglian Water,CR000071,Housing Services Other,Water & Sewerage,432
http://statistics.data.gov.uk/id/local-authority/12UE,Huntingdonshire District Council,09/06/2016,190631,HDC 2016-05,5,384,Kelsall Consultancy Ltd,CR422497,Housing Strategy,Consultants,711
http://statistics.data.gov.uk/id/local-authority/12UE,Huntingdonshire District Council,30/06/2016,191716,C-0002332535,5,271.85,Computershare Vouchers Ltd,CR412205,Human Resources,Childcare Admin Vouchers,144
http://statistics.data.gov.uk/id/local-authority/12UE,Huntingdonshire District Council,14/06/2016,598860,HUNTINGDON DC,5,360,Resourcelink User Group,CR410637,Human Resources,Corporate Subscriptions,754
http://statistics.data.gov.uk/id/local-authority/12UE,Huntingdonshire District Council,09/06/2016,189335,104184,5,260,Cambridge Consultancy In Counselling,CR455108,Human Resources,Medical Fees,734
http://statistics.data.gov.uk/id/local-authority/12UE,Huntingdonshire District Council,09/06/2016,189382,INV040440,5,"1,200.00",Safety Media Ltd,CR033676,Human Resources,Training,130
http://statistics.data.gov.uk/id/local-authority/12UE,Huntingdonshire District Council,16/06/2016,190910,T/13830,5,324,Hbinfo Ltd,CR479354,Human Resources,Training,130
http://statistics.data.gov.uk/id/local-authority/12UE,Huntingdonshire District Council,09/06/2016,189193,T001972,5,"1,188.00",Zebra Training Services,CR411687,Human Resources,Training,130
http://statistics.data.gov.uk/id/local-authority/12UE,Huntingdonshire District Council,09/06/2016,190717,6358,5,"6,633.00",Rullion It Plus Limited,CR423532,Imd Shared Service,Consultants,711
http://statistics.data.gov.uk/id/local-authority/12UE,Huntingdonshire District Council,02/06/2016,190358,188293,5,"19,164.20",Cambridge City Council,CR017896,Imd Shared Service,Equipment Maintenance,511
http://statistics.data.gov.uk/id/local-authority/12UE,Huntingdonshire District Council,16/06/2016,190726,42003813 R7,5,263.04,Imtech Aqua Maintenance Ltd,CR422225,Imd Shared Service,Equipment Maintenance,511
http://statistics.data.gov.uk/id/local-authority/12UE,Huntingdonshire District Council,16/06/2016,189857,SINV00089417,5,570,Bist,CR422733,Imd Shared Service,Equipment Maintenance,511
http://statistics.data.gov.uk/id/local-authority/12UE,Huntingdonshire District Council,02/06/2016,190360,11912,5,341.46,Lightning Recruitment,CR028184,Imd Shared Service,Hired Staff,100
http://statistics.data.gov.uk/id/local-authority/12UE,Huntingdonshire District Council,02/06/2016,190359,12271,5,603,Lightning Recruitment,CR028184,Imd Shared Service,Hired Staff,100
http://statistics.data.gov.uk/id/local-authority/12UE,Huntingdonshire District Council,09/06/2016,190716,12309,5,361.8,Lightning Recruitment,CR028184,Imd Shared Service,Hired Staff,100
http://statistics.data.gov.uk/id/local-authority/12UE,Huntingdonshire District Council,16/06/2016,191102,12345,5,603,Lightning Recruitment,CR028184,Imd Shared Service,Hired Staff,100
http://statistics.data.gov.uk/id/local-authority/12UE,Huntingdonshire District Council,30/06/2016,191787,12382,5,603,Lightning Recruitment,CR028184,Imd Shared Service,Hired Staff,100
http://statistics.data.gov.uk/id/local-authority/12UE,Huntingdonshire District Council,30/06/2016,191786,12415,5,594.96,Lightning Recruitment,CR028184,Imd Shared Service,Hired Staff,100
http://statistics.data.gov.uk/id/local-authority/12UE,Huntingdonshire District Council,02/06/2016,190364,26/04/2016,5,"1,236.00",Edrm Systems Ltd,CR416278,Imd Shared Service,Hired Staff,100
http://statistics.data.gov.uk/id/local-authority/12UE,Huntingdonshire District Council,02/06/2016,190361,26/04/2016,5,"1,066.67",Edrm Systems Ltd,CR416278,Imd Shared Service,Hired Staff,100
http://statistics.data.gov.uk/id/local-authority/12UE,Huntingdonshire District Council,02/06/2016,189204,050516_7,5,"5,400.00",Ict Projects Ltd,CR423374,Imd Shared Service,Hired Staff,100
http://statistics.data.gov.uk/id/local-authority/12UE,Huntingdonshire District Council,28/06/2016,189879,240516_8,5,"7,920.00",Ict Projects Ltd,CR423374,Imd Shared Service,Hired Staff,100
http://statistics.data.gov.uk/id/local-authority/12UE,Huntingdonshire District Council,02/06/2016,188798,R013842,5,"1,320.00",Premier It Recruitment Ltd,CR454029,Imd Shared Service,Hired Staff,100
http://statistics.data.gov.uk/id/local-authority/12UE,Huntingdonshire District Council,02/06/2016,188796,R013843,5,"1,320.00",Premier It Recruitment Ltd,CR454029,Imd Shared Service,Hired Staff,100
http://statistics.data.gov.uk/id/local-authority/12UE,Huntingdonshire District Council,02/06/2016,188797,R013846,5,"1,320.00",Premier It Recruitment Ltd,CR454029,Imd Shared Service,Hired Staff,100
http://statistics.data.gov.uk/id/local-authority/12UE,Huntingdonshire District Council,02/06/2016,188795,R013852,5,599.4,Premier It Recruitment Ltd,CR454029,Imd Shared Service,Hired Staff,100
http://statistics.data.gov.uk/id/local-authority/12UE,Huntingdonshire District Council,09/06/2016,189198,R013960,5,"1,056.00",Premier It Recruitment Ltd,CR454029,Imd Shared Service,Hired Staff,100
http://statistics.data.gov.uk/id/local-authority/12UE,Huntingdonshire District Council,09/06/2016,189200,R013967,5,"1,056.00",Premier It Recruitment Ltd,CR454029,Imd Shared Service,Hired Staff,100
http://statistics.data.gov.uk/id/local-authority/12UE,Huntingdonshire District Council,09/06/2016,189202,R013984,5,"1,056.00",Premier It Recruitment Ltd,CR454029,Imd Shared Service,Hired Staff,100
http://statistics.data.gov.uk/id/local-authority/12UE,Huntingdonshire District Council,09/06/2016,189203,R013996,5,356.4,Premier It Recruitment Ltd,CR454029,Imd Shared Service,Hired Staff,100
http://statistics.data.gov.uk/id/local-authority/12UE,Huntingdonshire District Council,16/06/2016,189548,R014134,5,477.9,Premier It Recruitment Ltd,CR454029,Imd Shared Service,Hired Staff,100
http://statistics.data.gov.uk/id/local-authority/12UE,Huntingdonshire District Council,16/06/2016,189546,R014146,5,"1,320.00",Premier It Recruitment Ltd,CR454029,Imd Shared Service,Hired Staff,100
http://statistics.data.gov.uk/id/local-authority/12UE,Huntingdonshire District Council,16/06/2016,189547,R014147,5,"1,320.00",Premier It Recruitment Ltd,CR454029,Imd Shared Service,Hired Staff,100
http://statistics.data.gov.uk/id/local-authority/12UE,Huntingdonshire District Council,16/06/2016,189549,R014155,5,"1,320.00",Premier It Recruitment Ltd,CR454029,Imd Shared Service,Hired Staff,100
http://statistics.data.gov.uk/id/local-authority/12UE,Huntingdonshire District Council,02/06/2016,189894,R014275,5,"1,320.00",Premier It Recruitment Ltd,CR454029,Imd Shared Service,Hired Staff,100
http://statistics.data.gov.uk/id/local-authority/12UE,Huntingdonshire District Council,02/06/2016,189897,R014284,5,"1,320.00",Premier It Recruitment Ltd,CR454029,Imd Shared Service,Hired Staff,100
http://statistics.data.gov.uk/id/local-authority/12UE,Huntingdonshire District Council,02/06/2016,189899,R014298,5,356.4,Premier It Recruitment Ltd,CR454029,Imd Shared Service,Hired Staff,100
http://statistics.data.gov.uk/id/local-authority/12UE,Huntingdonshire District Council,02/06/2016,189896,R014318,5,"1,320.00",Premier It Recruitment Ltd,CR454029,Imd Shared Service,Hired Staff,100
http://statistics.data.gov.uk/id/local-authority/12UE,Huntingdonshire District Council,16/06/2016,190369,INV12345,5,948,Hornbill Service Management Limited,CR423491,Imd Shared Service,I C T Services,731
http://statistics.data.gov.uk/id/local-authority/12UE,Huntingdonshire District Council,02/06/2016,189214,742878104/0516,5,992.16,Virgin Media Business,CR033120,Imd Shared Service,I T Line Rental,248
http://statistics.data.gov.uk/id/local-authority/12UE,Huntingdonshire District Council,30/06/2016,191104,742878104/0616,5,992.17,Virgin Media Business,CR033120,Imd Shared Service,I T Line Rental,248
http://statistics.data.gov.uk/id/local-authority/12UE,Huntingdonshire District Council,16/06/2016,191106,923469-067A,5,"7,898.90",Virgin Media Business/Cpsn,CR455148,Imd Shared Service,I T Line Rental,248
http://statistics.data.gov.uk/id/local-authority/12UE,Huntingdonshire District Council,02/06/2016,189887,2879095,5,576,Insight Direct Uk Ltd,CR000242,Imd Shared Service,Other I T Hardware,203
http://statistics.data.gov.uk/id/local-authority/12UE,Huntingdonshire District Council,09/06/2016,189902,2892549,5,976.8,Insight Direct Uk Ltd,CR000242,Imd Shared Service,Other I T Hardware,203
http://statistics.data.gov.uk/id/local-authority/12UE,Huntingdonshire District Council,16/06/2016,189860,2895893,5,"3,528.00",Insight Direct Uk Ltd,CR000242,Imd Shared Service,Other I T Hardware,203
http://statistics.data.gov.uk/id/local-authority/12UE,Huntingdonshire District Council,09/06/2016,189852,SINV00089065,5,"1,275.60",Bist,CR422733,Imd Shared Service,Other I T Hardware,203
http://statistics.data.gov.uk/id/local-authority/12UE,Huntingdonshire District Council,16/06/2016,189890,SINV00089416,5,"1,554.00",Bist,CR422733,Imd Shared Service,Other I T Hardware,203
http://statistics.data.gov.uk/id/local-authority/12UE,Huntingdonshire District Council,02/06/2016,598328,27491,2,"1,080.00",Nick Burton,CR423505,Imd Shared Service,Software,206
http://statistics.data.gov.uk/id/local-authority/12UE,Huntingdonshire District Council,02/06/2016,190358,188293,5,"12,263.50",Cambridge City Council,CR017896,Imd Shared Service,Software,206
http://statistics.data.gov.uk/id/local-authority/12UE,Huntingdonshire District Council,02/06/2016,190355,188297,5,"38,273.88",Cambridge City Council,CR017896,Imd Shared Service,Software,206
http://statistics.data.gov.uk/id/local-authority/12UE,Huntingdonshire District Council,02/06/2016,189851,91370632,5,"2,700.00",Northgatepublic Services Uk Ltd,CR028925,Imd Shared Service,Software,206
http://statistics.data.gov.uk/id/local-authority/12UE,Huntingdonshire District Council,09/06/2016,190353,91371474,5,"1,534.50",Northgatepublic Services Uk Ltd,CR028925,Imd Shared Service,Software,206
http://statistics.data.gov.uk/id/local-authority/12UE,Huntingdonshire District Council,16/06/2016,191161,91372540,5,"14,866.39",Northgatepublic Services Uk Ltd,CR028925,Imd Shared Service,Software,206
http://statistics.data.gov.uk/id/local-authority/12UE,Huntingdonshire District Council,09/06/2016,189889,INV12344,5,"3,600.00",Hornbill Service Management Limited,CR423491,Imd Shared Service,Software,206
http://statistics.data.gov.uk/id/local-authority/12UE,Huntingdonshire District Council,16/06/2016,189856,SIN099138,5,676.8,Eacs Ltd,CR404499,Imd Shared Service,Software,206
http://statistics.data.gov.uk/id/local-authority/12UE,Huntingdonshire District Council,16/06/2016,189856,SIN099138,5,"16,896.00",Eacs Ltd,CR404499,Imd Shared Service,Software,206
http://statistics.data.gov.uk/id/local-authority/12UE,Huntingdonshire District Council,16/06/2016,190721,1235729530,5,"1,676.98",Orange Airtime,CR455799,Imd Shared Service,Telephone &Mobile Phonecharges,240
http://statistics.data.gov.uk/id/local-authority/12UE,Huntingdonshire District Council,02/06/2016,189214,742878104/0516,5,"1,469.48",Virgin Media Business,CR033120,Imd Shared Service,Telephone &Mobile Phonecharges,240
http://statistics.data.gov.uk/id/local-authority/12UE,Huntingdonshire District Council,30/06/2016,191104,742878104/0616,5,"1,591.14",Virgin Media Business,CR033120,Imd Shared Service,Telephone &Mobile Phonecharges,240
http://statistics.data.gov.uk/id/local-authority/12UE,Huntingdonshire District Council,09/06/2016,189854,13831,5,"3,355.20",It Governance Ltd,CR423496,Imd Shared Service,Training,130
http://statistics.data.gov.uk/id/local-authority/12UE,Huntingdonshire District Council,23/06/2016,191429,ISL135003,5,"3,216.00",Qa Limited,CR479791,Imd Shared Service,Training,130
http://statistics.data.gov.uk/id/local-authority/12UE,Huntingdonshire District Council,30/06/2016,190677,ACC212,5,"6,696.00",Arlingclose,CR478136,Industrial Properties,Consultants,711
http://statistics.data.gov.uk/id/local-authority/12UE,Huntingdonshire District Council,30/06/2016,191551,HDC 2561,5,"21,402.23",Acebench Limited,CR405428,Industrial Properties,Rent,410
http://statistics.data.gov.uk/id/local-authority/12UE,Huntingdonshire District Council,09/06/2016,190154,9324299,5,"16,236.00",First In Service Ltd,CR422285,Leisure Centres Capital,Building Mtce,303
http://statistics.data.gov.uk/id/local-authority/12UE,Huntingdonshire District Council,09/06/2016,190180,INV#03513,5,"1,152.00",Nrm Plumbing & Heating,CR416722,Leisure Centres Capital,Building Mtce,303
http://statistics.data.gov.uk/id/local-authority/12UE,Huntingdonshire District Council,09/06/2016,189407,T26130,5,878.4,Mogo Uk,CR410378,Licences,Licence Plates,564
http://statistics.data.gov.uk/id/local-authority/12UE,Huntingdonshire District Council,09/06/2016,189407,T26130,5,17.88,Mogo Uk,CR410378,Licences,Postage,231
http://statistics.data.gov.uk/id/local-authority/12UE,Huntingdonshire District Council,30/06/2016,190236,900743629,5,807.04,Portakabin Ltd,CR478566,Miscellaneous Grants,Grants (Paid Out),800
http://statistics.data.gov.uk/id/local-authority/12UE,Huntingdonshire District Council,09/06/2016,598518,1ST QRT GRANT,4,"26,325.00",Rural Cambs Citzens Advice Bureau,CR455454,Miscellaneous Grants,Grants (Paid Out),800
http://statistics.data.gov.uk/id/local-authority/12UE,Huntingdonshire District Council,09/06/2016,598537,1ST QTR GRANT,4,"9,250.00",Huntingdonshire  Volunteer Centre,CR410643,Miscellaneous Grants,Grants (Paid Out),800
http://statistics.data.gov.uk/id/local-authority/12UE,Huntingdonshire District Council,09/06/2016,598520,1ST QTR GRT,5,"2,500.00",Care Network,CR477579,Miscellaneous Grants,Grants (Paid Out),800
http://statistics.data.gov.uk/id/local-authority/12UE,Huntingdonshire District Council,09/06/2016,598519,1ST QTR GRT,5,"4,750.00",Disability Information Service Huntingdonshir,CR408884,Miscellaneous Grants,Grants (Paid Out),800
http://statistics.data.gov.uk/id/local-authority/12UE,Huntingdonshire District Council,30/06/2016,598538,2ND QTR GRT,4,"9,250.00",Huntingdonshire  Volunteer Centre,CR410643,Miscellaneous Grants,Grants (Paid Out),800
http://statistics.data.gov.uk/id/local-authority/12UE,Huntingdonshire District Council,30/06/2016,598524,2ND QTR GRT AID,5,"2,500.00",Care Network,CR477579,Miscellaneous Grants,Grants (Paid Out),800
http://statistics.data.gov.uk/id/local-authority/12UE,Huntingdonshire District Council,30/06/2016,598523,2ND QTR GRT AID,5,"4,750.00",Disability Information Service Huntingdonshir,CR408884,Miscellaneous Grants,Grants (Paid Out),800
http://statistics.data.gov.uk/id/local-authority/12UE,Huntingdonshire District Council,30/06/2016,598522,2QTR GRANT AID,4,"26,325.00",Rural Cambs Citzens Advice Bureau,CR455454,Miscellaneous Grants,Grants (Paid Out),800
http://statistics.data.gov.uk/id/local-authority/12UE,Huntingdonshire District Council,30/06/2016,190924,INV550039,5,412.24,Ecocleen Services Limited,CR406985,Off Street Parking,Building Cleaning,440
http://statistics.data.gov.uk/id/local-authority/12UE,Huntingdonshire District Council,30/06/2016,190668,C020041510,5,327.59,Stannah Lifts,CR088939,Off Street Parking,Building Mtce,303
http://statistics.data.gov.uk/id/local-authority/12UE,Huntingdonshire District Council,09/06/2016,190562,37739,5,"61,043.45",Cbre Richard Ellis Ltd,CR487227,Off Street Parking,Contribution (Paid Out),810
http://statistics.data.gov.uk/id/local-authority/12UE,Huntingdonshire District Council,09/06/2016,190565,38044,5,"-23,705.76",Cbre Richard Ellis Ltd,CR487227,Off Street Parking,Contribution (Paid Out),810
http://statistics.data.gov.uk/id/local-authority/12UE,Huntingdonshire District Council,23/06/2016,191311,371226896,5,839.14,Swalec,CR407130,Off Street Parking,Electricity,420
http://statistics.data.gov.uk/id/local-authority/12UE,Huntingdonshire District Council,02/06/2016,189701,441567103,5,"1,593.31",Swalec,CR407130,Off Street Parking,Electricity,420
http://statistics.data.gov.uk/id/local-authority/12UE,Huntingdonshire District Council,30/06/2016,191839,C020041594,5,295.56,Stannah Lifts,CR088939,Off Street Parking,Plant & Equipment Maintenance,380
http://statistics.data.gov.uk/id/local-authority/12UE,Huntingdonshire District Council,30/06/2016,190947,P020147248,5,921.6,Stannah Lifts,CR088939,Off Street Parking,Plant & Equipment Maintenance,380
http://statistics.data.gov.uk/id/local-authority/12UE,Huntingdonshire District Council,02/06/2016,190231,55478260,5,371.71,Archant Herts & Cambs,CR415764,One Leisure Corporate Mgt,Advertising/Promoting Services,255
http://statistics.data.gov.uk/id/local-authority/12UE,Huntingdonshire District Council,16/06/2016,190876,IN16PS16002435,5,"1,837.44",Whistl Uk Ltd,CR479965,One Leisure Corporate Mgt,Postage,231
http://statistics.data.gov.uk/id/local-authority/12UE,Huntingdonshire District Council,16/06/2016,189494,1340,5,90,Talk Twenty 1,CR422876,One Leisure Huntingdon,Advertising/Promoting Services,255
http://statistics.data.gov.uk/id/local-authority/12UE,Huntingdonshire District Council,02/06/2016,190289,3184,5,153,Premier Logos,CR401203,One Leisure Huntingdon,Advertising/Promoting Services,255
http://statistics.data.gov.uk/id/local-authority/12UE,Huntingdonshire District Council,02/06/2016,189829,29865,5,755.65,Hi-Spec Facilities Services Plc,CR423413,One Leisure Huntingdon,Building Cleaning,440
http://statistics.data.gov.uk/id/local-authority/12UE,Huntingdonshire District Council,09/06/2016,189375,9589,5,341.99,Roger Wilson Electronics,CR028041,One Leisure Huntingdon,Building Mtce,303
http://statistics.data.gov.uk/id/local-authority/12UE,Huntingdonshire District Council,09/06/2016,190157,40879,5,505.2,Dal-Rod,CR017043,One Leisure Huntingdon,Building Mtce,303
http://statistics.data.gov.uk/id/local-authority/12UE,Huntingdonshire District Council,23/06/2016,190189,40965,5,292.8,Dal-Rod Uk Ltd,CR002782,One Leisure Huntingdon,Building Mtce,303
http://statistics.data.gov.uk/id/local-authority/12UE,Huntingdonshire District Council,02/06/2016,188966,3993014,1,20.15,Espo,CR006566,One Leisure Huntingdon,Building Mtce,303
http://statistics.data.gov.uk/id/local-authority/12UE,Huntingdonshire District Council,02/06/2016,190185,INV03341,5,"1,044.00",Nrm Plumbing & Heating,CR416722,One Leisure Huntingdon,Building Mtce,303
http://statistics.data.gov.uk/id/local-authority/12UE,Huntingdonshire District Council,09/06/2016,190679,159655,5,373.24,Chemaide Limited,CR416597,One Leisure Huntingdon,Cleaning Materials,443
http://statistics.data.gov.uk/id/local-authority/12UE,Huntingdonshire District Council,02/06/2016,188966,3993014,1,374.44,Espo,CR006566,One Leisure Huntingdon,Cleaning Materials,443
http://statistics.data.gov.uk/id/local-authority/12UE,Huntingdonshire District Council,09/06/2016,189799,GD486,5,300,Greenday Energy Ltd,CR422398,One Leisure Huntingdon,Consultants,711
http://statistics.data.gov.uk/id/local-authority/12UE,Huntingdonshire District Council,16/06/2016,190987,65916,5,"4,537.53",Haven Power Ltd,CR455940,One Leisure Huntingdon,Electricity,420
http://statistics.data.gov.uk/id/local-authority/12UE,Huntingdonshire District Council,23/06/2016,191299,381239505,5,748.93,Swalec,CR407130,One Leisure Huntingdon,Electricity,420
http://statistics.data.gov.uk/id/local-authority/12UE,Huntingdonshire District Council,02/06/2016,190274,15707,5,252,Bigprinting,CR416383,One Leisure Huntingdon,Equipment,500
http://statistics.data.gov.uk/id/local-authority/12UE,Huntingdonshire District Council,09/06/2016,190159,5015,5,444.65,Inflatable Testing & Repairing Services Ltd,CR410226,One Leisure Huntingdon,Equipment Maintenance,511
http://statistics.data.gov.uk/id/local-authority/12UE,Huntingdonshire District Council,09/06/2016,189103,82220,5,"1,280.70",Servicesport (Uk) Ltd,CR422867,One Leisure Huntingdon,Equipment Maintenance,511
http://statistics.data.gov.uk/id/local-authority/12UE,Huntingdonshire District Council,02/06/2016,189158,82235,5,560.4,Servicesport (Uk) Ltd,CR422867,One Leisure Huntingdon,Equipment Maintenance,511
http://statistics.data.gov.uk/id/local-authority/12UE,Huntingdonshire District Council,16/06/2016,189730,GM13650,5,371.16,Garner Medical Ltd,CR003972,One Leisure Huntingdon,Equipment Maintenance,511
http://statistics.data.gov.uk/id/local-authority/12UE,Huntingdonshire District Council,30/06/2016,190568,22347,5,372,B. S. Graves Electrical Ltd,CR000363,One Leisure Huntingdon,Fire & Security,450
http://statistics.data.gov.uk/id/local-authority/12UE,Huntingdonshire District Council,16/06/2016,191000,12489088110,5,"3,095.05",E-On Energy,CR416430,One Leisure Huntingdon,Gas,421
http://statistics.data.gov.uk/id/local-authority/12UE,Huntingdonshire District Council,16/06/2016,190995,12489088970,5,609.2,E-On Energy,CR416430,One Leisure Huntingdon,Gas,421
http://statistics.data.gov.uk/id/local-authority/12UE,Huntingdonshire District Council,16/06/2016,190991,12489090950,5,"3,874.34",E-On Energy,CR416430,One Leisure Huntingdon,Gas,421
http://statistics.data.gov.uk/id/local-authority/12UE,Huntingdonshire District Council,30/06/2016,189775,225774,5,748.8,Ken Booth & Co,CR000305,One Leisure Huntingdon,Materials,550
http://statistics.data.gov.uk/id/local-authority/12UE,Huntingdonshire District Council,02/06/2016,188966,3993014,1,19.24,Espo,CR006566,One Leisure Huntingdon,Materials,550
http://statistics.data.gov.uk/id/local-authority/12UE,Huntingdonshire District Council,09/06/2016,190736,3188,5,120,Premier Logos,CR401203,One Leisure Huntingdon,Materials For Resale,570
http://statistics.data.gov.uk/id/local-authority/12UE,Huntingdonshire District Council,02/06/2016,190288,112006,5,186,First Editions Ltd,CR411973,One Leisure Huntingdon,Materials For Resale,570
http://statistics.data.gov.uk/id/local-authority/12UE,Huntingdonshire District Council,02/06/2016,189052,92285995,5,936.22,Speedo International Limited,CR41427,One Leisure Huntingdon,Materials For Resale,570
http://statistics.data.gov.uk/id/local-authority/12UE,Huntingdonshire District Council,16/06/2016,190192,39482,5,283.2,Clanpress King'S Lynn Ltd,CR413516,One Leisure Huntingdon,Printing (External),220
http://statistics.data.gov.uk/id/local-authority/12UE,Huntingdonshire District Council,02/06/2016,188966,3993014,1,40.87,Espo,CR006566,One Leisure Huntingdon,Sports Equipment,524
http://statistics.data.gov.uk/id/local-authority/12UE,Huntingdonshire District Council,23/06/2016,190168,68883,5,645.99,Snackline Direct Ltd,CR478090,One Leisure Huntingdon,Vending Materials,560
http://statistics.data.gov.uk/id/local-authority/12UE,Huntingdonshire District Council,16/06/2016,189494,1340,5,90,Talk Twenty 1,CR422876,One Leisure Ramsey,Advertising/Promoting Services,255
http://statistics.data.gov.uk/id/local-authority/12UE,Huntingdonshire District Council,02/06/2016,190289,3184,5,76.5,Premier Logos,CR401203,One Leisure Ramsey,Advertising/Promoting Services,255
http://statistics.data.gov.uk/id/local-authority/12UE,Huntingdonshire District Council,02/06/2016,189829,29865,5,593.74,Hi-Spec Facilities Services Plc,CR423413,One Leisure Ramsey,Building Cleaning,440
http://statistics.data.gov.uk/id/local-authority/12UE,Huntingdonshire District Council,23/06/2016,191303,341225796,5,"2,848.56",Swalec,CR407130,One Leisure Ramsey,Electricity,420
http://statistics.data.gov.uk/id/local-authority/12UE,Huntingdonshire District Council,09/06/2016,190159,5015,5,301.09,Inflatable Testing & Repairing Services Ltd,CR410226,One Leisure Ramsey,Equipment Maintenance,511
http://statistics.data.gov.uk/id/local-authority/12UE,Huntingdonshire District Council,09/06/2016,189104,82221,5,691.52,Servicesport (Uk) Ltd,CR422867,One Leisure Ramsey,Equipment Maintenance,511
http://statistics.data.gov.uk/id/local-authority/12UE,Huntingdonshire District Council,16/06/2016,190992,12489090790,5,"1,122.86",E-On Energy,CR416430,One Leisure Ramsey,Gas,421
http://statistics.data.gov.uk/id/local-authority/12UE,Huntingdonshire District Council,23/06/2016,190300,1205700,5,41.39,Badgemaster,CR400716,One Leisure Ramsey,Materials,550
http://statistics.data.gov.uk/id/local-authority/12UE,Huntingdonshire District Council,09/06/2016,190736,3188,5,66,Premier Logos,CR401203,One Leisure Ramsey,Materials For Resale,570
http://statistics.data.gov.uk/id/local-authority/12UE,Huntingdonshire District Council,02/06/2016,190288,112006,5,93.6,First Editions Ltd,CR411973,One Leisure Ramsey,Materials For Resale,570
http://statistics.data.gov.uk/id/local-authority/12UE,Huntingdonshire District Council,02/06/2016,188960,92283380,5,710.98,Speedo International Limited,CR41427,One Leisure Ramsey,Materials For Resale,570
http://statistics.data.gov.uk/id/local-authority/12UE,Huntingdonshire District Council,16/06/2016,189494,1340,5,90,Talk Twenty 1,CR422876,One Leisure Sawtry,Advertising/Promoting Services,255
http://statistics.data.gov.uk/id/local-authority/12UE,Huntingdonshire District Council,02/06/2016,190289,3184,5,76.5,Premier Logos,CR401203,One Leisure Sawtry,Advertising/Promoting Services,255
http://statistics.data.gov.uk/id/local-authority/12UE,Huntingdonshire District Council,02/06/2016,189829,29865,5,620.72,Hi-Spec Facilities Services Plc,CR423413,One Leisure Sawtry,Building Cleaning,440
http://statistics.data.gov.uk/id/local-authority/12UE,Huntingdonshire District Council,23/06/2016,191301,941240466,5,"3,493.90",Swalec,CR407130,One Leisure Sawtry,Electricity,420
http://statistics.data.gov.uk/id/local-authority/12UE,Huntingdonshire District Council,09/06/2016,190159,5015,5,301.09,Inflatable Testing & Repairing Services Ltd,CR410226,One Leisure Sawtry,Equipment Maintenance,511
http://statistics.data.gov.uk/id/local-authority/12UE,Huntingdonshire District Council,09/06/2016,189105,82222,5,633.31,Servicesport (Uk) Ltd,CR422867,One Leisure Sawtry,Equipment Maintenance,511
http://statistics.data.gov.uk/id/local-authority/12UE,Huntingdonshire District Council,30/06/2016,191011,GM13714,5,320.52,Garner Medical Ltd,CR003972,One Leisure Sawtry,Equipment Maintenance,511
http://statistics.data.gov.uk/id/local-authority/12UE,Huntingdonshire District Council,09/06/2016,190337,90113135,5,730.8,G4s Secure Solutions (Uk) Ltd,CR454030,One Leisure Sawtry,Fire & Security,450
http://statistics.data.gov.uk/id/local-authority/12UE,Huntingdonshire District Council,16/06/2016,190997,12489088700,5,"1,134.72",E-On Energy,CR416430,One Leisure Sawtry,Gas,421
http://statistics.data.gov.uk/id/local-authority/12UE,Huntingdonshire District Council,23/06/2016,190300,1205700,5,44.99,Badgemaster,CR400716,One Leisure Sawtry,Materials,550
http://statistics.data.gov.uk/id/local-authority/12UE,Huntingdonshire District Council,09/06/2016,190736,3188,5,60,Premier Logos,CR401203,One Leisure Sawtry,Materials For Resale,570
http://statistics.data.gov.uk/id/local-authority/12UE,Huntingdonshire District Council,02/06/2016,190288,112006,5,92.4,First Editions Ltd,CR411973,One Leisure Sawtry,Materials For Resale,570
http://statistics.data.gov.uk/id/local-authority/12UE,Huntingdonshire District Council,02/06/2016,188959,92283379,5,474.91,Speedo International Limited,CR41427,One Leisure Sawtry,Materials For Resale,570
http://statistics.data.gov.uk/id/local-authority/12UE,Huntingdonshire District Council,16/06/2016,189494,1340,5,90,Talk Twenty 1,CR422876,One Leisure St Ives,Advertising/Promoting Services,255
http://statistics.data.gov.uk/id/local-authority/12UE,Huntingdonshire District Council,02/06/2016,190289,3184,5,153,Premier Logos,CR401203,One Leisure St Ives,Advertising/Promoting Services,255
http://statistics.data.gov.uk/id/local-authority/12UE,Huntingdonshire District Council,02/06/2016,190350,102080147,5,420,Clear Channel Uk Ltd,CR423531,One Leisure St Ives,Advertising/Promoting Services,255
http://statistics.data.gov.uk/id/local-authority/12UE,Huntingdonshire District Council,02/06/2016,189021,272992,5,206.28,Westminster Foodservice,CR455156,One Leisure St Ives,Bar Provisions,558
http://statistics.data.gov.uk/id/local-authority/12UE,Huntingdonshire District Council,02/06/2016,189031,324106,5,3.36,South Lincs Food Service,CR033415,One Leisure St Ives,Bar Provisions,558
http://statistics.data.gov.uk/id/local-authority/12UE,Huntingdonshire District Council,02/06/2016,189029,325560,5,16.51,South Lincs Food Service,CR033415,One Leisure St Ives,Bar Provisions,558
http://statistics.data.gov.uk/id/local-authority/12UE,Huntingdonshire District Council,09/06/2016,189465,328484,5,34.34,South Lincs Food Service,CR033415,One Leisure St Ives,Bar Provisions,558
http://statistics.data.gov.uk/id/local-authority/12UE,Huntingdonshire District Council,09/06/2016,189388,609004,5,480.84,Lacons,CR422174,One Leisure St Ives,Bar Provisions,558
http://statistics.data.gov.uk/id/local-authority/12UE,Huntingdonshire District Council,09/06/2016,189734,609860,5,"1,263.36",Lacons,CR422174,One Leisure St Ives,Bar Provisions,558
http://statistics.data.gov.uk/id/local-authority/12UE,Huntingdonshire District Council,16/06/2016,189773,610093,5,391.99,Lacons,CR422174,One Leisure St Ives,Bar Provisions,558
http://statistics.data.gov.uk/id/local-authority/12UE,Huntingdonshire District Council,30/06/2016,191014,210558109,5,466.8,Booker Cash And Carry,CR027611,One Leisure St Ives,Bar Provisions,558
http://statistics.data.gov.uk/id/local-authority/12UE,Huntingdonshire District Council,02/06/2016,189765,2102518083,5,997.79,Booker Cash And Carry,CR027611,One Leisure St Ives,Bar Provisions,558
http://statistics.data.gov.uk/id/local-authority/12UE,Huntingdonshire District Council,09/06/2016,190252,2102528618,5,548.12,Booker Cash And Carry,CR027611,One Leisure St Ives,Bar Provisions,558
http://statistics.data.gov.uk/id/local-authority/12UE,Huntingdonshire District Council,16/06/2016,190376,2102538931,5,865.98,Booker Cash And Carry,CR027611,One Leisure St Ives,Bar Provisions,558
http://statistics.data.gov.uk/id/local-authority/12UE,Huntingdonshire District Council,23/06/2016,190648,2102547597,5,132.89,Booker Cash And Carry,CR027611,One Leisure St Ives,Bar Provisions,558
http://statistics.data.gov.uk/id/local-authority/12UE,Huntingdonshire District Council,02/06/2016,189829,29865,5,"4,560.91",Hi-Spec Facilities Services Plc,CR423413,One Leisure St Ives,Building Cleaning,440
http://statistics.data.gov.uk/id/local-authority/12UE,Huntingdonshire District Council,09/06/2016,190301,32,5,495,Lui The Plumber,CR422379,One Leisure St Ives,Building Mtce,303
http://statistics.data.gov.uk/id/local-authority/12UE,Huntingdonshire District Council,09/06/2016,190304,9596,5,36,Roger Wilson Electronics,CR028041,One Leisure St Ives,Building Mtce,303
http://statistics.data.gov.uk/id/local-authority/12UE,Huntingdonshire District Council,09/06/2016,190304,9596,5,246,Roger Wilson Electronics,CR028041,One Leisure St Ives,Building Mtce,303
http://statistics.data.gov.uk/id/local-authority/12UE,Huntingdonshire District Council,09/06/2016,190304,9596,5,166.68,Roger Wilson Electronics,CR028041,One Leisure St Ives,Building Mtce,303
http://statistics.data.gov.uk/id/local-authority/12UE,Huntingdonshire District Council,30/06/2016,191369,9608,5,616.52,Roger Wilson Electronics,CR028041,One Leisure St Ives,Building Mtce,303
http://statistics.data.gov.uk/id/local-authority/12UE,Huntingdonshire District Council,23/06/2016,190296,CD970032242,5,363.6,Omega Red Group,CR411029,One Leisure St Ives,Building Mtce,303
http://statistics.data.gov.uk/id/local-authority/12UE,Huntingdonshire District Council,23/06/2016,190648,2102547597,5,46.47,Booker Cash And Carry,CR027611,One Leisure St Ives,Catering,710
http://statistics.data.gov.uk/id/local-authority/12UE,Huntingdonshire District Council,02/06/2016,189021,272992,5,183.84,Westminster Foodservice,CR455156,One Leisure St Ives,Catering Materials,559
http://statistics.data.gov.uk/id/local-authority/12UE,Huntingdonshire District Council,02/06/2016,189031,324106,5,405.89,South Lincs Food Service,CR033415,One Leisure St Ives,Catering Materials,559
http://statistics.data.gov.uk/id/local-authority/12UE,Huntingdonshire District Council,09/06/2016,188930,324107,5,561.2,South Lincs Food Service,CR033415,One Leisure St Ives,Catering Materials,559
http://statistics.data.gov.uk/id/local-authority/12UE,Huntingdonshire District Council,02/06/2016,189029,325560,5,225.33,South Lincs Food Service,CR033415,One Leisure St Ives,Catering Materials,559
http://statistics.data.gov.uk/id/local-authority/12UE,Huntingdonshire District Council,09/06/2016,189465,328484,5,119.11,South Lincs Food Service,CR033415,One Leisure St Ives,Catering Materials,559
http://statistics.data.gov.uk/id/local-authority/12UE,Huntingdonshire District Council,02/06/2016,189765,2102518083,5,49.47,Booker Cash And Carry,CR027611,One Leisure St Ives,Catering Materials,559
http://statistics.data.gov.uk/id/local-authority/12UE,Huntingdonshire District Council,09/06/2016,190252,2102528618,5,6.49,Booker Cash And Carry,CR027611,One Leisure St Ives,Catering Materials,559
http://statistics.data.gov.uk/id/local-authority/12UE,Huntingdonshire District Council,16/06/2016,190376,2102538931,5,293.17,Booker Cash And Carry,CR027611,One Leisure St Ives,Catering Materials,559
http://statistics.data.gov.uk/id/local-authority/12UE,Huntingdonshire District Council,23/06/2016,190648,2102547597,5,77.59,Booker Cash And Carry,CR027611,One Leisure St Ives,Catering Materials,559
http://statistics.data.gov.uk/id/local-authority/12UE,Huntingdonshire District Council,02/06/2016,189153,INV044126,5,368.88,Slush Puppie Ltd,CR455958,One Leisure St Ives,Catering Materials,559
http://statistics.data.gov.uk/id/local-authority/12UE,Huntingdonshire District Council,16/06/2016,189927,38SI 3824644,5,865.36,Brenntag Uk Ltd,CR015017,One Leisure St Ives,Chemicals,551
http://statistics.data.gov.uk/id/local-authority/12UE,Huntingdonshire District Council,09/06/2016,189465,328484,5,28.12,South Lincs Food Service,CR033415,One Leisure St Ives,Cleaning Materials,443
http://statistics.data.gov.uk/id/local-authority/12UE,Huntingdonshire District Council,02/06/2016,189765,2102518083,5,21.58,Booker Cash And Carry,CR027611,One Leisure St Ives,Cleaning Materials,443
http://statistics.data.gov.uk/id/local-authority/12UE,Huntingdonshire District Council,16/06/2016,190376,2102538931,5,11.99,Booker Cash And Carry,CR027611,One Leisure St Ives,Cleaning Materials,443
http://statistics.data.gov.uk/id/local-authority/12UE,Huntingdonshire District Council,02/06/2016,189021,272992,5,11.99,Westminster Foodservice,CR455156,One Leisure St Ives,Confectionery,572
http://statistics.data.gov.uk/id/local-authority/12UE,Huntingdonshire District Council,02/06/2016,189031,324106,5,70.63,South Lincs Food Service,CR033415,One Leisure St Ives,Confectionery,572
http://statistics.data.gov.uk/id/local-authority/12UE,Huntingdonshire District Council,09/06/2016,188930,324107,5,5.94,South Lincs Food Service,CR033415,One Leisure St Ives,Confectionery,572
http://statistics.data.gov.uk/id/local-authority/12UE,Huntingdonshire District Council,02/06/2016,189029,325560,5,60.5,South Lincs Food Service,CR033415,One Leisure St Ives,Confectionery,572
http://statistics.data.gov.uk/id/local-authority/12UE,Huntingdonshire District Council,02/06/2016,189765,2102518083,5,91.68,Booker Cash And Carry,CR027611,One Leisure St Ives,Confectionery,572
http://statistics.data.gov.uk/id/local-authority/12UE,Huntingdonshire District Council,09/06/2016,190252,2102528618,5,77.94,Booker Cash And Carry,CR027611,One Leisure St Ives,Confectionery,572
http://statistics.data.gov.uk/id/local-authority/12UE,Huntingdonshire District Council,16/06/2016,190376,2102538931,5,43.13,Booker Cash And Carry,CR027611,One Leisure St Ives,Confectionery,572
http://statistics.data.gov.uk/id/local-authority/12UE,Huntingdonshire District Council,23/06/2016,190648,2102547597,5,10.99,Booker Cash And Carry,CR027611,One Leisure St Ives,Confectionery,572
http://statistics.data.gov.uk/id/local-authority/12UE,Huntingdonshire District Council,09/06/2016,189799,GD486,5,300,Greenday Energy Ltd,CR422398,One Leisure St Ives,Consultants,711
http://statistics.data.gov.uk/id/local-authority/12UE,Huntingdonshire District Council,16/06/2016,190985,65919,5,"8,251.46",Haven Power Ltd,CR455940,One Leisure St Ives,Electricity,420
http://statistics.data.gov.uk/id/local-authority/12UE,Huntingdonshire District Council,16/06/2016,190984,65922,5,"1,968.55",Haven Power Ltd,CR455940,One Leisure St Ives,Electricity,420
http://statistics.data.gov.uk/id/local-authority/12UE,Huntingdonshire District Council,02/06/2016,190155,7631,5,"2,200.80",Blunderbus Theatre Co Ltd,CR422436,One Leisure St Ives,Entertainments Inc Cable Tv,744
http://statistics.data.gov.uk/id/local-authority/12UE,Huntingdonshire District Council,23/06/2016,191290,8290,5,250,Starlite Roadshow,CR024127,One Leisure St Ives,Entertainments Inc Cable Tv,744
http://statistics.data.gov.uk/id/local-authority/12UE,Huntingdonshire District Council,02/06/2016,190313,41427,5,300,Dings Entertainment,CR412228,One Leisure St Ives,Entertainments Inc Cable Tv,744
http://statistics.data.gov.uk/id/local-authority/12UE,Huntingdonshire District Council,30/06/2016,191580,41555,5,300,Dings Entertainment,CR412228,One Leisure St Ives,Entertainments Inc Cable Tv,744
http://statistics.data.gov.uk/id/local-authority/12UE,Huntingdonshire District Council,02/06/2016,190365,1700A,5,"1,600.00",Lucas Management,CR422009,One Leisure St Ives,Entertainments Inc Cable Tv,744
http://statistics.data.gov.uk/id/local-authority/12UE,Huntingdonshire District Council,02/06/2016,189486,MN2S/2016-0619G,5,750,Mn2s Management,CR423064,One Leisure St Ives,Entertainments Inc Cable Tv,744
http://statistics.data.gov.uk/id/local-authority/12UE,Huntingdonshire District Council,02/06/2016,189485,MN2S/2016-0620G,5,900,Mn2s Management,CR423064,One Leisure St Ives,Entertainments Inc Cable Tv,744
http://statistics.data.gov.uk/id/local-authority/12UE,Huntingdonshire District Council,30/06/2016,191832,ROGER 06.05.16,5,"1,670.82",Starlite Roadshow,CR024127,One Leisure St Ives,Entertainments Inc Cable Tv,744
http://statistics.data.gov.uk/id/local-authority/12UE,Huntingdonshire District Council,09/06/2016,190304,9596,5,108,Roger Wilson Electronics,CR028041,One Leisure St Ives,Equipment,500
http://statistics.data.gov.uk/id/local-authority/12UE,Huntingdonshire District Council,16/06/2016,189715,12816149,5,299.98,Nisbets,CR412311,One Leisure St Ives,Equipment,500
http://statistics.data.gov.uk/id/local-authority/12UE,Huntingdonshire District Council,09/06/2016,190159,5015,5,250.92,Inflatable Testing & Repairing Services Ltd,CR410226,One Leisure St Ives,Equipment Maintenance,511
http://statistics.data.gov.uk/id/local-authority/12UE,Huntingdonshire District Council,09/06/2016,189106,82223,5,"2,068.80",Servicesport (Uk) Ltd,CR422867,One Leisure St Ives,Equipment Maintenance,511
http://statistics.data.gov.uk/id/local-authority/12UE,Huntingdonshire District Council,09/06/2016,190505,INV001519,5,"1,250.00",Lynx Bowling Services,CR455532,One Leisure St Ives,Equipment Maintenance,511
http://statistics.data.gov.uk/id/local-authority/12UE,Huntingdonshire District Council,23/06/2016,190507,311009732,5,329.76,Abel Alarm Company Ltd,CR000201,One Leisure St Ives,Fire & Security,450
http://statistics.data.gov.uk/id/local-authority/12UE,Huntingdonshire District Council,23/06/2016,190310,7080556989,5,468.88,Honeywell Novar Systems,CR406826,One Leisure St Ives,Fire & Security,450
http://statistics.data.gov.uk/id/local-authority/12UE,Huntingdonshire District Council,16/06/2016,191066,12489089510,5,"1,340.32",E-On Energy,CR416430,One Leisure St Ives,Gas,421
http://statistics.data.gov.uk/id/local-authority/12UE,Huntingdonshire District Council,16/06/2016,190994,12489089510,5,349.67,E-On Energy,CR416430,One Leisure St Ives,Gas,421
http://statistics.data.gov.uk/id/local-authority/12UE,Huntingdonshire District Council,16/06/2016,189773,610093,5,18.82,Lacons,CR422174,One Leisure St Ives,Gas Cylinders (Incl. Bars),567
http://statistics.data.gov.uk/id/local-authority/12UE,Huntingdonshire District Council,02/06/2016,188763,SIV114515,5,297.54,Les Mills Uk,CR025826,One Leisure St Ives,Licences,730
http://statistics.data.gov.uk/id/local-authority/12UE,Huntingdonshire District Council,30/06/2016,190504,SIV120482,5,297.54,Les Mills Uk,CR025826,One Leisure St Ives,Licences,730
http://statistics.data.gov.uk/id/local-authority/12UE,Huntingdonshire District Council,30/06/2016,189775,225774,5,"2,246.81",Ken Booth & Co,CR000305,One Leisure St Ives,Materials,550
http://statistics.data.gov.uk/id/local-authority/12UE,Huntingdonshire District Council,09/06/2016,189465,328484,5,129.1,South Lincs Food Service,CR033415,One Leisure St Ives,Materials,550
http://statistics.data.gov.uk/id/local-authority/12UE,Huntingdonshire District Council,23/06/2016,190300,1205700,5,88.18,Badgemaster,CR400716,One Leisure St Ives,Materials,550
http://statistics.data.gov.uk/id/local-authority/12UE,Huntingdonshire District Council,16/06/2016,190376,2102538931,5,169.78,Booker Cash And Carry,CR027611,One Leisure St Ives,Materials,550
http://statistics.data.gov.uk/id/local-authority/12UE,Huntingdonshire District Council,02/06/2016,189153,INV044126,5,55.92,Slush Puppie Ltd,CR455958,One Leisure St Ives,Materials,550
http://statistics.data.gov.uk/id/local-authority/12UE,Huntingdonshire District Council,09/06/2016,190736,3188,5,120,Premier Logos,CR401203,One Leisure St Ives,Materials For Resale,570
http://statistics.data.gov.uk/id/local-authority/12UE,Huntingdonshire District Council,02/06/2016,190288,112006,5,186,First Editions Ltd,CR411973,One Leisure St Ives,Materials For Resale,570
http://statistics.data.gov.uk/id/local-authority/12UE,Huntingdonshire District Council,02/06/2016,189056,92289241,5,714.24,Speedo International Limited,CR41427,One Leisure St Ives,Materials For Resale,570
http://statistics.data.gov.uk/id/local-authority/12UE,Huntingdonshire District Council,02/06/2016,189041,3077519,5,"2,414.40",First In Service Ltd,CR422285,One Leisure St Ives,Plant & Equipment Maintenance,380
http://statistics.data.gov.uk/id/local-authority/12UE,Huntingdonshire District Council,09/06/2016,190505,INV001519,5,"1,804.80",Lynx Bowling Services,CR455532,One Leisure St Ives,Plant & Equipment Maintenance,380
http://statistics.data.gov.uk/id/local-authority/12UE,Huntingdonshire District Council,02/06/2016,189043,S3080636,5,334.8,First In Service Ltd,CR422285,One Leisure St Ives,Plant & Equipment Maintenance,380
http://statistics.data.gov.uk/id/local-authority/12UE,Huntingdonshire District Council,02/06/2016,190279,16228,5,726,Bigprinting,CR416383,One Leisure St Ives,Printing (External),220
http://statistics.data.gov.uk/id/local-authority/12UE,Huntingdonshire District Council,16/06/2016,190193,39483,5,580,Clanpress King'S Lynn Ltd,CR413516,One Leisure St Ives,Printing (External),220
http://statistics.data.gov.uk/id/local-authority/12UE,Huntingdonshire District Council,23/06/2016,190188,39504,5,290,Clanpress King'S Lynn Ltd,CR413516,One Leisure St Ives,Printing (External),220
http://statistics.data.gov.uk/id/local-authority/12UE,Huntingdonshire District Council,02/06/2016,190350,102080147,5,190.79,Clear Channel Uk Ltd,CR423531,One Leisure St Ives,Printing (External),220
http://statistics.data.gov.uk/id/local-authority/12UE,Huntingdonshire District Council,02/06/2016,189783,68145,5,251.3,Snackline Direct Ltd,CR478090,One Leisure St Ives,Vending Materials,560
http://statistics.data.gov.uk/id/local-authority/12UE,Huntingdonshire District Council,23/06/2016,190164,68892,5,426.24,Snackline Direct Ltd,CR478090,One Leisure St Ives,Vending Materials,560
http://statistics.data.gov.uk/id/local-authority/12UE,Huntingdonshire District Council,23/06/2016,190340,SBO1040722,5,885.65,Veolia Es Uk Ltd,CR478889,One Leisure St Ives,Waste Disposal,763
http://statistics.data.gov.uk/id/local-authority/12UE,Huntingdonshire District Council,16/06/2016,189494,1340,5,90,Talk Twenty 1,CR422876,One Leisure St Neots,Advertising/Promoting Services,255
http://statistics.data.gov.uk/id/local-authority/12UE,Huntingdonshire District Council,02/06/2016,190289,3184,5,153,Premier Logos,CR401203,One Leisure St Neots,Advertising/Promoting Services,255
http://statistics.data.gov.uk/id/local-authority/12UE,Huntingdonshire District Council,23/06/2016,191275,82543311,5,371.71,Archant Herts & Cambs,CR415764,One Leisure St Neots,Advertising/Promoting Services,255
http://statistics.data.gov.uk/id/local-authority/12UE,Huntingdonshire District Council,02/06/2016,189829,29865,5,"2,051.06",Hi-Spec Facilities Services Plc,CR423413,One Leisure St Neots,Building Cleaning,440
http://statistics.data.gov.uk/id/local-authority/12UE,Huntingdonshire District Council,09/06/2016,189372,38SI 3824198,5,940.21,Brenntag Uk Ltd,CR015017,One Leisure St Neots,Chemicals,551
http://statistics.data.gov.uk/id/local-authority/12UE,Huntingdonshire District Council,09/06/2016,189157,55743,5,395.71,Maskearaid Ind Supplies,CR033423,One Leisure St Neots,Cleaning Materials,443
http://statistics.data.gov.uk/id/local-authority/12UE,Huntingdonshire District Council,16/06/2016,190986,65914,5,"9,086.21",Haven Power Ltd,CR455940,One Leisure St Neots,Electricity,420
http://statistics.data.gov.uk/id/local-authority/12UE,Huntingdonshire District Council,09/06/2016,190159,5015,5,401.45,Inflatable Testing & Repairing Services Ltd,CR410226,One Leisure St Neots,Equipment Maintenance,511
http://statistics.data.gov.uk/id/local-authority/12UE,Huntingdonshire District Council,30/06/2016,191082,5030,5,979.2,Inflatable Testing & Repairing Services Ltd,CR410226,One Leisure St Neots,Equipment Maintenance,511
http://statistics.data.gov.uk/id/local-authority/12UE,Huntingdonshire District Council,09/06/2016,189107,82224,5,"2,206.63",Servicesport (Uk) Ltd,CR422867,One Leisure St Neots,Equipment Maintenance,511
http://statistics.data.gov.uk/id/local-authority/12UE,Huntingdonshire District Council,30/06/2016,190309,GM13603,5,549.37,Garner Medical Ltd,CR003972,One Leisure St Neots,Equipment Maintenance,511
http://statistics.data.gov.uk/id/local-authority/12UE,Huntingdonshire District Council,30/06/2016,190293,GM13702,5,302.42,Garner Medical Ltd,CR003972,One Leisure St Neots,Equipment Maintenance,511
http://statistics.data.gov.uk/id/local-authority/12UE,Huntingdonshire District Council,23/06/2016,191071,5824049,5,288.06,Chubb Fire And Security Ltd,CR478924,One Leisure St Neots,Fire & Security,450
http://statistics.data.gov.uk/id/local-authority/12UE,Huntingdonshire District Council,16/06/2016,190998,12489088380,5,"2,942.35",E-On Energy,CR416430,One Leisure St Neots,Gas,421
http://statistics.data.gov.uk/id/local-authority/12UE,Huntingdonshire District Council,30/06/2016,189775,225774,5,"1,497.79",Ken Booth & Co,CR000305,One Leisure St Neots,Materials,550
http://statistics.data.gov.uk/id/local-authority/12UE,Huntingdonshire District Council,23/06/2016,190300,1205700,5,116.98,Badgemaster,CR400716,One Leisure St Neots,Materials,550
http://statistics.data.gov.uk/id/local-authority/12UE,Huntingdonshire District Council,23/06/2016,191073,SI341816-1,5,434,Rlss Uk Enterprises Ltd - Lifesavers Direct,CR401615,One Leisure St Neots,Materials,550
http://statistics.data.gov.uk/id/local-authority/12UE,Huntingdonshire District Council,09/06/2016,190736,3188,5,120,Premier Logos,CR401203,One Leisure St Neots,Materials For Resale,570
http://statistics.data.gov.uk/id/local-authority/12UE,Huntingdonshire District Council,02/06/2016,190288,112006,5,186,First Editions Ltd,CR411973,One Leisure St Neots,Materials For Resale,570
http://statistics.data.gov.uk/id/local-authority/12UE,Huntingdonshire District Council,02/06/2016,190280,68197,5,352.27,Snackline Direct Ltd,CR478090,One Leisure St Neots,Vending Materials,560
http://statistics.data.gov.uk/id/local-authority/12UE,Huntingdonshire District Council,23/06/2016,191070,69109,5,576.11,Snackline Direct Ltd,CR478090,One Leisure St Neots,Vending Materials,560
http://statistics.data.gov.uk/id/local-authority/12UE,Huntingdonshire District Council,23/06/2016,190341,SBO1040724,5,320.35,Veolia Es Uk Ltd,CR478889,One Leisure St Neots,Waste Disposal,763
http://statistics.data.gov.uk/id/local-authority/12UE,Huntingdonshire District Council,02/06/2016,189811,123913345,5,"1,315.32",Anglian Water,CR000071,One Leisure St Neots,Water & Sewerage,432
http://statistics.data.gov.uk/id/local-authority/12UE,Huntingdonshire District Council,09/06/2016,189980,4000003647,5,283.58,1st Choice Recruitment,CR416849,Operations Mgt Units,Hired Staff,100
http://statistics.data.gov.uk/id/local-authority/12UE,Huntingdonshire District Council,09/06/2016,190156,9052160964,5,"1,806.23",Royal Mail,CR027083,Operations Mgt Units,Postage,231
http://statistics.data.gov.uk/id/local-authority/12UE,Huntingdonshire District Council,09/06/2016,189822,GFL1785HDC,5,"1,572.00",G Ferrara Ltd,CR478949,Parks & Open Spaces,Building Mtce,303
http://statistics.data.gov.uk/id/local-authority/12UE,Huntingdonshire District Council,09/06/2016,190241,GFL1786HDC,5,"1,668.00",G Ferrara Ltd,CR478949,Parks & Open Spaces,Building Mtce,303
http://statistics.data.gov.uk/id/local-authority/12UE,Huntingdonshire District Council,16/06/2016,189985,CHES 257,5,"4,500.00",Hampton/Chesmetalwork,CR453817,Parks & Open Spaces,Playground Equipment,360
http://statistics.data.gov.uk/id/local-authority/12UE,Huntingdonshire District Council,09/06/2016,189383,2702,5,468,K & M Lighting Services Ltd,CR455166,Parks & Open Spaces,Sitework,359
http://statistics.data.gov.uk/id/local-authority/12UE,Huntingdonshire District Council,02/06/2016,189829,29865,5,"3,778.27",Hi-Spec Facilities Services Plc,CR423413,Pathfinder House Site,Building Cleaning,440
http://statistics.data.gov.uk/id/local-authority/12UE,Huntingdonshire District Council,23/06/2016,190663,6198,5,"1,710.00",Cambridge Flat Roofing,CR479717,Pathfinder House Site,Building Mtce,303
http://statistics.data.gov.uk/id/local-authority/12UE,Huntingdonshire District Council,16/06/2016,189821,12563,5,"1,140.00",Innovations Visual Communication Systems Ltd,CR422257,Pathfinder House Site,Building Mtce,303
http://statistics.data.gov.uk/id/local-authority/12UE,Huntingdonshire District Council,16/06/2016,190676,20097,5,"1,294.60",Bh Doors & Engineering Ltd,CR455707,Pathfinder House Site,Building Mtce,303
http://statistics.data.gov.uk/id/local-authority/12UE,Huntingdonshire District Council,27/06/2016,190199,102040,5,784.65,Brookes,CR422866,Pathfinder House Site,Catering,710
http://statistics.data.gov.uk/id/local-authority/12UE,Huntingdonshire District Council,02/06/2016,189466,55724,5,623.33,Maskearaid Ind Supplies,CR033423,Pathfinder House Site,Cleaning Materials,443
http://statistics.data.gov.uk/id/local-authority/12UE,Huntingdonshire District Council,16/06/2016,190988,65912,5,"9,093.24",Haven Power Ltd,CR455940,Pathfinder House Site,Electricity,420
http://statistics.data.gov.uk/id/local-authority/12UE,Huntingdonshire District Council,02/06/2016,189818,600006855,5,518.4,Edf Energy Customer Field Services,CR477611,Pathfinder House Site,Electricity,420
http://statistics.data.gov.uk/id/local-authority/12UE,Huntingdonshire District Council,16/06/2016,190990,13313569100,5,"1,055.06",E-On Energy,CR416430,Pathfinder House Site,Gas,421
http://statistics.data.gov.uk/id/local-authority/12UE,Huntingdonshire District Council,02/06/2016,188805,50056882,5,"1,966.80",Haymarket Business Publications Ltd,CR417029,Planning M U'S,Corporate Subscriptions,754
http://statistics.data.gov.uk/id/local-authority/12UE,Huntingdonshire District Council,02/06/2016,189543,01-Apr-16,5,"2,447.50",Tree Officer Outsourcing Uk Ltd,CR423131,Planning M U'S,Hired Staff,100
http://statistics.data.gov.uk/id/local-authority/12UE,Huntingdonshire District Council,09/06/2016,190510,SIN013234,5,"5,040.00",The Wildlife Trust Beds Cambs & Northants,CR401987,Project Contributions,Contribution (Paid Out),810
http://statistics.data.gov.uk/id/local-authority/12UE,Huntingdonshire District Council,09/06/2016,190509,SIN013256,5,"4,200.00",The Wildlife Trust Beds Cambs & Northants,CR401987,Project Contributions,Contribution (Paid Out),810
http://statistics.data.gov.uk/id/local-authority/12UE,Huntingdonshire District Council,30/06/2016,191178,1111336989,5,"6,432.36",Deloitte Llp,CR400573,Project Contributions,Subcontractors,777
http://statistics.data.gov.uk/id/local-authority/12UE,Huntingdonshire District Council,30/06/2016,191552,3114367,5,"1,734.00",Cipfa,CR000107,Property Development And Mgt,Corporate Subscriptions,754
http://statistics.data.gov.uk/id/local-authority/12UE,Huntingdonshire District Council,30/06/2016,190923,INV550046,5,731.68,Ecocleen Services Limited,CR406985,Public Conveniences,Building Cleaning,440
http://statistics.data.gov.uk/id/local-authority/12UE,Huntingdonshire District Council,02/06/2016,189934,IN0515237,5,"1,900.08",Staffline Group,CR416827,Recycling,Hired Staff,100
http://statistics.data.gov.uk/id/local-authority/12UE,Huntingdonshire District Council,09/06/2016,189936,IN0516766,5,"1,545.73",Staffline Group,CR416827,Recycling,Hired Staff,100
http://statistics.data.gov.uk/id/local-authority/12UE,Huntingdonshire District Council,23/06/2016,191037,IN0518551,5,"1,158.40",Staffline Group,CR416827,Recycling,Hired Staff,100
http://statistics.data.gov.uk/id/local-authority/12UE,Huntingdonshire District Council,30/06/2016,191038,IN0519906,5,"2,011.99",Staffline Group,CR416827,Recycling,Hired Staff,100
http://statistics.data.gov.uk/id/local-authority/12UE,Huntingdonshire District Council,30/06/2016,191423,IN0521556,5,"2,847.65",Staffline Group,CR416827,Recycling,Hired Staff,100
http://statistics.data.gov.uk/id/local-authority/12UE,Huntingdonshire District Council,09/06/2016,189952,186376,5,126,Barton Petroleum,CR409205,Recycling,Vehicle Oil & Lubricants,626
http://statistics.data.gov.uk/id/local-authority/12UE,Huntingdonshire District Council,16/06/2016,190582,96326865,5,519.38,Terberg Matec Uk Ltd,CR402183,Recycling,Vehicle Parts & Fittings,625
http://statistics.data.gov.uk/id/local-authority/12UE,Huntingdonshire District Council,23/06/2016,191029,SI29128,5,"15,980.52",Ssi Schaefer Ltd,CR407190,Recycling Equipment Capital,Recycling Bins,525
http://statistics.data.gov.uk/id/local-authority/12UE,Huntingdonshire District Council,02/06/2016,189941,IN0515240,5,635.23,Staffline Group,CR416827,Street Cleaning,Hired Staff,100
http://statistics.data.gov.uk/id/local-authority/12UE,Huntingdonshire District Council,09/06/2016,189988,IN0516769,5,472.85,Staffline Group,CR416827,Street Cleaning,Hired Staff,100
http://statistics.data.gov.uk/id/local-authority/12UE,Huntingdonshire District Council,09/06/2016,189942,IN0516770,5,451.99,Staffline Group,CR416827,Street Cleaning,Hired Staff,100
http://statistics.data.gov.uk/id/local-authority/12UE,Huntingdonshire District Council,23/06/2016,190573,IN0518554,5,989.5,Staffline Group,CR416827,Street Cleaning,Hired Staff,100
http://statistics.data.gov.uk/id/local-authority/12UE,Huntingdonshire District Council,30/06/2016,190747,IN0519909,5,"1,355.98",Staffline Group,CR416827,Street Cleaning,Hired Staff,100
http://statistics.data.gov.uk/id/local-authority/12UE,Huntingdonshire District Council,30/06/2016,191427,IN0521559,5,"1,081.12",Staffline Group,CR416827,Street Cleaning,Hired Staff,100
http://statistics.data.gov.uk/id/local-authority/12UE,Huntingdonshire District Council,09/06/2016,189908,346113,5,983.7,Smi Group,CR423139,Street Cleaning,Protective Clothing & Uniforms,163
http://statistics.data.gov.uk/id/local-authority/12UE,Huntingdonshire District Council,09/06/2016,190576,3853,5,115,Boston L.G.V Training Ltd,CR423533,Street Cleaning,Training,130
http://statistics.data.gov.uk/id/local-authority/12UE,Huntingdonshire District Council,09/06/2016,190576,3853,5,"1,056.00",Boston L.G.V Training Ltd,CR423533,Street Cleaning,Training,130
http://statistics.data.gov.uk/id/local-authority/12UE,Huntingdonshire District Council,23/06/2016,190232,16257,5,384,Ian'S Tyre & Exhaust Centre,CR405836,Street Cleaning,Tyres,630
http://statistics.data.gov.uk/id/local-authority/12UE,Huntingdonshire District Council,23/06/2016,190234,16309,5,360,Ian'S Tyre & Exhaust Centre,CR405836,Street Cleaning,Tyres,630
http://statistics.data.gov.uk/id/local-authority/12UE,Huntingdonshire District Council,02/06/2016,189092,16795,5,270,Ian'S Tyre & Exhaust Centre,CR405836,Street Cleaning,Tyres,630
http://statistics.data.gov.uk/id/local-authority/12UE,Huntingdonshire District Council,30/06/2016,190975,1606/16672,5,714,Gullivers Truck Hire Ltd,CR477663,Street Cleaning,Vehicle Hire,607
http://statistics.data.gov.uk/id/local-authority/12UE,Huntingdonshire District Council,02/06/2016,189430,6540,5,552,D & H Sign & Display Services,CR030353,Street Cleaning,Vehicle Parts & Fittings,625
http://statistics.data.gov.uk/id/local-authority/12UE,Huntingdonshire District Council,23/06/2016,190577,1091323,5,951.6,Dts Solutions (Uk) Ltd,CR001981,Street Cleaning,Vehicle Parts & Fittings,625
http://statistics.data.gov.uk/id/local-authority/12UE,Huntingdonshire District Council,23/06/2016,190577,1091323,5,951.6,Dts Solutions (Uk) Ltd,CR001981,Street Cleaning,Vehicle Parts & Fittings,625
http://statistics.data.gov.uk/id/local-authority/12UE,Huntingdonshire District Council,02/06/2016,189509,58378001,5,292.3,Marshall Motor Group,CR009641,Street Cleaning,Vehicle Parts & Fittings,625
http://statistics.data.gov.uk/id/local-authority/12UE,Huntingdonshire District Council,30/06/2016,190708,58379575,5,335.16,Marshall Motor Group,CR009641,Street Cleaning,Vehicle Parts & Fittings,625
http://statistics.data.gov.uk/id/local-authority/12UE,Huntingdonshire District Council,23/06/2016,190555,10678193,5,"9,094.57",Cambridgeshire County Council,CR006678,Trade Refuse,Waste Disposal,763
http://statistics.data.gov.uk/id/local-authority/12UE,Huntingdonshire District Council,16/06/2016,191130,ACM/GF/8634.461,5,"32,000.00",Plexus Law Ltd,CR423541,Trees,Compensation,811
